Workbook

Sheet STEP 1--Field Information
A1: In the yellow cells below, enter descriptive information about a field. You can obtain calculations that are based on: acres, OR length and width of beds, OR total square footage of growing area.
D4: Farm Name:
F5: Acres:
D6: Field name :
A8: Select crop planned from dropdown menu. (If mixed field, select "Mixed Vegetables"):
A10: Select previous cover crop on field from dropdown menu. If none, select "No Cover Crop".
A12: SIZE OF YOUR FIELD, BEDS, OR GROWING AREA:
A13: Enter the number of acres: | F13: =E13 -> 0
A14: OR
A15: Enter bed width (in feet):
B16: AND
B17: Enter bed length (in feet):
C18: AND
C19: Number of beds
A20: OR | F20: =(E15*E17*E19)/43560 -> 0
A21: Enter total square feet of growing area: | F21: =E21/43560 -> 0
F23: =F13+F21+F20 -> 0
A25: Mixed vegetables
A26: Basil | C26: No Cover Crop
A27: Beans: Dry/Snap/Lima | C27: Alsike clover
A28: Beets, Swiss Chard | C28: Berseem clover
A29: Broccoli, Cabbage, Cauliflower | C29: Buckwhat
A30: Carrots, Parsnips | C30: Field Peas
A31: Celery / Celeriac | C31: Hairy vetch, mid summer incorp
A32: Collards | C32: Hairy vetch, spring incorp
A33: Cucumbers, Melons | C33: Oat, leonard
A34: Eggplant | C34: Other
A35: Garlic | C35: Red clover, spring incorp
A36: Leafy Greens | C36: Red clover, mid summer incorp
A37: Lettuce / Escarole | C37: Rye
A38: Muskmelon | C38: Sudan grass
A39: Okra | C39: Sweet clover
A40: Ornamental Corn
A41: Ornamental Gourds
A42: Peas
A43: Peppers
A44: Potatoes
A45: Pumpkins
A46: Radishes
A47: Rhubarb - Establishment
A48: Rhubarb - Maintenance
A49: Spinach
A50: Sweet Potato
A51: Squash
A52: Sweet Corn, Early
A53: Sweet Corn, Full Season
A54: Tomatoes
A55: Rutabagas, Turnips
A56: Watermelon
A57: Blueberries - Establishment
A58: Blueberries - Maintenance
A59: Cranberries - Establishment
A60: Cranberries - Maintenance
A61: Hops - Establishment
A62: Hops - Maintenance
A63: Raspberries/Brambles -Establishment
A64: Raspberries/Brambles - Maintenance
A65: Strawberries - Establishment
A66: Strawberries - Maintenance
A68: Asparagus - Establishment
A69: Asparagus - Maintenance

Sheet STEP 2--Soil Test Information
A1: Instructions: Enter the information from your soil test results in the yellow cells. Select P and K levels from drop down menus. Only enter information from a soil test lab that uses the modified Morgan's extract (UVM, UMass, UMaine, Dairy One in NY)
A3: Field Name | B3: ='STEP 1--Field Information'!E6 -> 0
A4: pH
A5: Phosphorus (enter ppm P--if your results are in lbs/acre, divide that number by 2 for ppm)
A6: Potasssium (enter ppm K--if your results are in lbs/acre, divide that number by 2 for ppm)
A7: Calcium (Ca)
A8: Magnesium (Mg)
A9: Sulfur (S)
A11: Micronutrients (Modified Morgan ppm)
A12: Iron (Fe)
A13: Manganese (Mn)
A14: Boron (B)
A15: Copper (Cu)
A16: Zinc (Zn)
A17: Sodium (Na)
A18: Aluminum (Al)
A20: % Soil Organic Matter | C20: %
A21: Lime recommendation from soil test (enter number of tons per acre; if in pounds per 1000 square feet, divide that number by 435) | B21: 0 | C21: tons
A22: Nitrogen
A23: Phosphate
A24: Potash
A31: Under 2 ppm | B31: Under 25 ppm
A32: 2-3 ppm | B32: 25-50 ppm
A33: 3-4 ppm | B33: 50-75 ppm
A34: 4-7 ppm | B34: 75-100 ppm
A35: 7-10 ppm | B35: 100-130 ppm
A36: 10-14 ppm | B36: 130-160 ppm
A37: 14-18 ppm | B37: 160-190 ppm
A38: over 18 ppm | B38: over 190 ppm

Sheet Veg rec lookup (hidden)
A1: Crop | B1: Under 2 ppm | C1: 2-3 ppm | D1: 3-4 ppm | E1: 4-7 ppm | F1: 7-10 ppm | G1: 10-14 ppm | H1: 14-18 ppm | I1: over 18 ppm
A2: Blueberries - Establishment | B2: 60 | C2: 40 | D2: 20 | E2: 20 | F2: 0 | G2: 0 | H2: 0 | I2: 0 | J2: 0
A3: Blueberries - Maintenance | B3: 50 | C3: 30 | D3: 20 | E3: 0 | F3: 0 | G3: 0 | H3: 0 | I3: 0 | J3: 0
A4: Cranberries - Establishment
A5: Cranberries - Maintenance
A6: Hops - Establishment | B6: 120 | C6: 100 | D6: 80 | E6: 60 | F6: 30 | G6: 0 | H6: 0 | I6: 0 | J6: 0
A7: Hops - Maintenance | B7: 100 | C7: 80 | D7: 60 | E7: 40 | F7: 20 | G7: 0 | H7: 0 | I7: 0 | J7: 0
A8: Raspberries/Brambles -Establishment | B8: 150 | C8: 120 | D8: 90 | E8: 40 | F8: 20 | G8: 0 | H8: 0 | I8: 0 | J8: 0
A9: Raspberries/Brambles - Maintenance | B9: 120 | C9: 90 | D9: 60 | E9: 20 | F9: 20 | G9: 0 | H9: 0 | I9: 0 | J9: 0
A10: Strawberries - Establishment | B10: 125 | C10: 100 | D10: 75 | E10: 50 | F10: 25 | G10: 0 | H10: 0 | I10: 0 | J10: 0
A11: Strawberries - Maintenance | B11: 100 | C11: 75 | D11: 50 | E11: 25 | F11: 25 | G11: 0 | H11: 0 | I11: 0 | J11: 0
A12: Home Vegetable (mixed) | B12: 0.5 | C12: 0.25 | D12: 0.25 | E12: 0.2 | F12: 0.1 | G12: 0.1 | H12: 0 | I12: 0 | J12: 0
A13: Home Blueberries-Establishment | B13: 0.25 | C13: 0.2 | D13: 0.1 | E13: 0.1 | F13: 0 | G13: 0 | H13: 0 | I13: 0 | J13: 0
A14: Home Blueberries-Maintenance | B14: 0.2 | C14: 0.1 | D14: 0.1 | E14: 0 | F14: 0 | G14: 0 | H14: 0 | I14: 0 | J14: 0
A15: Home Brambles-Establishment | B15: 0.5 | C15: 0.3 | D15: 0.25 | E15: 0.2 | F15: 0.1 | G15: 0 | H15: 0 | I15: 0 | J15: 0
A16: Home Brambles-Maintenance | B16: 0.3 | C16: 0.25 | D16: 0.15 | E16: 0.1 | F16: 0.1 | G16: 0 | H16: 0 | I16: 0 | J16: 0
A17: Home Strawberries-Establishment | B17: 0.5 | C17: 0.3 | D17: 0.25 | E17: 0.2 | F17: 0.1 | G17: 0 | H17: 0 | I17: 0 | J17: 0
A18: Home Strawberries-Maintenance | B18: 0.3 | C18: 0.25 | D18: 0.15 | E18: 0.1 | F18: 0.1 | G18: 0 | H18: 0 | I18: 0 | J18: 0
A19: Mixed vegetables | B19: 200 | C19: 100 | D19: 100 | E19: 80 | F19: 40 | G19: 30 | H19: 0 | I19: 0 | J19: 0
A20: Asparagus - Establishment | B20: 180 | C20: 150 | D20: 120 | E20: 60 | F20: 30 | G20: 30 | H20: 0 | I20: 0 | J20: 0
A21: Asparagus - Maintenance | B21: 150 | C21: 120 | D21: 90 | E21: 60 | F21: 30 | G21: 30 | H21: 0 | I21: 0 | J21: 0
A22: Basil | B22: 120 | C22: 90 | D22: 60 | E22: 45 | F22: 30 | G22: 30 | H22: 0 | I22: 0 | J22: 0
A23: Beans: Dry/Snap/Lima | B23: 100 | C23: 75 | D23: 75 | E23: 50 | F23: 25 | G23: 0 | H23: 0 | I23: 0 | J23: 0
A24: Beets, Swiss Chard | B24: 150 | C24: 125 | D24: 100 | E24: 50 | F24: 50 | G24: 25 | H24: 0 | I24: 0 | J24: 0
A25: Broccoli, Cabbage, Cauliflower | B25: 150 | C25: 125 | D25: 100 | E25: 50 | F25: 50 | G25: 25 | H25: 0 | I25: 0 | J25: 0
A26: Carrots, Parsnips | B26: 150 | C26: 125 | D26: 100 | E26: 50 | F26: 50 | G26: 25 | H26: 0 | I26: 0 | J26: 0
A27: Celery / Celeriac | B27: 180 | C27: 150 | D27: 120 | E27: 60 | F27: 30 | G27: 30 | H27: 0 | I27: 0 | J27: 0
A28: Collards | B28: 150 | C28: 125 | D28: 100 | E28: 50 | F28: 50 | G28: 25 | H28: 0 | I28: 0 | J28: 0
A29: Cucumbers, Melons | B29: 150 | C29: 125 | D29: 100 | E29: 50 | F29: 50 | G29: 25 | H29: 0 | I29: 0 | J29: 0
A30: Eggplant | B30: 150 | C30: 125 | D30: 100 | E30: 50 | F30: 50 | G30: 25 | H30: 0 | I30: 0 | J30: 0
A31: Garlic | B31: 150 | C31: 125 | D31: 100 | E31: 50 | F31: 50 | G31: 25 | H31: 0 | I31: 0 | J31: 0
A32: Leafy Greens | B32: 180 | C32: 150 | D32: 120 | E32: 60 | F32: 30 | G32: 30 | H32: 0 | I32: 0 | J32: 0
A33: Lettuce / Escarole | B33: 180 | C33: 150 | D33: 120 | E33: 60 | F33: 30 | G33: 30 | H33: 0 | I33: 0 | J33: 0
A34: Muskmelon | B34: 150 | C34: 125 | D34: 100 | E34: 50 | F34: 50 | G34: 25 | H34: 0 | I34: 0 | J34: 0
A35: Okra | B35: 150 | C35: 125 | D35: 100 | E35: 50 | F35: 25 | G35: 25 | H35: 0 | I35: 0 | J35: 0
A36: Onions, Leeks | B36: 150 | C36: 125 | D36: 100 | E36: 50 | F36: 25 | G36: 25 | H36: 0 | I36: 0 | J36: 0
A37: Ornamental Corn | B37: 140 | C37: 110 | D37: 80 | E37: 40 | F37: 30 | G37: 20 | H37: 0 | I37: 0 | J37: 0
A38: Ornamental Gourds | B38: 150 | C38: 125 | D38: 100 | E38: 50 | F38: 50 | G38: 25 | H38: 0 | I38: 0 | J38: 0
A39: Peas | B39: 150 | C39: 125 | D39: 100 | E39: 50 | F39: 50 | G39: 25 | H39: 0 | I39: 0 | J39: 0
A40: Peppers | B40: 150 | C40: 125 | D40: 100 | E40: 50 | F40: 25 | G40: 25 | H40: 0 | I40: 0 | J40: 0
A41: Potatoes | B41: 200 | C41: 160 | D41: 120 | E41: 90 | F41: 60 | G41: 30 | H41: 0 | I41: 0 | J41: 0
A42: Pumpkins | B42: 150 | C42: 125 | D42: 100 | E42: 50 | F42: 25 | G42: 25 | H42: 0 | I42: 0 | J42: 0
A43: Radishes | B43: 150 | C43: 125 | D43: 100 | E43: 50 | F43: 25 | G43: 25 | H43: 0 | I43: 0 | J43: 0
A44: Rhubarb - Establishment | B44: 200 | C44: 200 | D44: 150 | E44: 125 | F44: 75 | G44: 50 | H44: 25 | I44: 0 | J44: 0 | K44: 0
A45: Rhubarb - Maintenance | B45: 150 | C45: 125 | D45: 100 | E45: 50 | F45: 25 | G45: 25 | H45: 0
A46: Spinach | B46: 180 | C46: 150 | D46: 120 | E46: 60 | F46: 30 | G46: 30 | H46: 0
A47: Sweet Potato | B47: 300 | C47: 250 | D47: 200 | E47: 100 | F47: 50 | G47: 30 | H47: 0
A48: Squash | B48: 150 | C48: 125 | D48: 100 | E48: 50 | F48: 50 | G48: 25 | H48: 0
A49: Sweet Corn, Early | B49: 140 | C49: 110 | D49: 80 | E49: 40 | F49: 30 | G49: 20 | H49: 0
A50: Sweet Corn, Full Season | B50: 140 | C50: 110 | D50: 80 | E50: 40 | F50: 30 | G50: 20 | H50: 0
A51: Tomatoes | B51: 180 | C51: 150 | D51: 120 | E51: 60 | F51: 30 | G51: 30 | H51: 0
A52: Rutabagas, Turnips | B52: 180 | C52: 150 | D52: 120 | E52: 60 | F52: 30 | G52: 30 | H52: 0
A53: Watermelon | B53: 150 | C53: 125 | D53: 100 | E53: 50 | F53: 50 | G53: 25 | H53: 0
A55: K
A56: Crop | B56: 50-75 ppm | C56: 75-100 ppm | D56: 100-130 ppm | E56: 130-160 ppm | F56: 160-190 ppm | G56: over 190 ppm
A57: Blueberries - Establishment | B57: 125 | C57: 100 | D57: 75 | E57: 25 | F57: 0 | G57: 0
A58: Blueberries - Maintenance | B58: 100 | C58: 75 | D58: 50 | E58: 25 | F58: 0 | G58: 0
A59: Cranberries - Establishment
A60: Cranberries - Maintenance
A61: Hops - Establishment | B61: 150 | C61: 100 | D61: 80 | E61: 60 | F61: 40 | G61: 0
A62: Hops - Maintenance | B62: 150 | C62: 100 | D62: 80 | E62: 60 | F62: 40 | G62: 0
A63: Raspberries/Brambles -Establishment | B63: 200 | C63: 150 | D63: 100 | E63: 75 | F63: 50 | G63: 0
A64: Raspberries/Brambles - Maintenance | B64: 175 | C64: 125 | D64: 100 | E64: 75 | F64: 50 | G64: 0
A65: Strawberries - Establishment | B65: 125 | C65: 100 | D65: 75 | E65: 50 | F65: 25 | G65: 0
A66: Strawberries - Maintenance | B66: 125 | C66: 100 | D66: 75 | E66: 50 | F66: 25 | G66: 0
A67: Home Vegetable (mixed) | B67: 0.5 | C67: 0.25 | D67: 0.25 | E67: 0.1 | F67: 0.1 | G67: 0
A68: Home Blueberries-Establishment | B68: 0.3 | C68: 0.25 | D68: 0.2 | E68: 0.1
A69: Home Blueberries-Maintenance | B69: 0.25 | C69: 0.2 | D69: 0.1 | E69: 0.1
A70: Home Brambles-Establishment | B70: 0.5 | C70: 0.5 | D70: 0.25 | E70: 0.25 | F70: 0.1 | G70: 0
A71: Home Brambles-Maintenance | B71: 0.5 | C71: 0.5 | D71: 0.25 | E71: 0.25 | F71: 0.1 | G71: 0
A72: Home Strawberries-Establishment | B72: 0.5 | C72: 0.5 | D72: 0.25 | E72: 0.25 | F72: 0.1 | G72: 0
A73: Home Strawberries-Maintenance | B73: 0.5 | C73: 0.5 | D73: 0.25 | E73: 0.25 | F73: 0.1 | G73: 0
A74: Mixed vegetables | B74: 200 | C74: 100 | D74: 100 | E74: 40 | F74: 40 | G74: 0
A75: Asparagus - Establishment | B75: 175 | C75: 150 | D75: 150 | E75: 75 | F75: 50 | G75: 0
A76: Asparagus - Maintenance | B76: 200 | C76: 175 | D76: 150 | E76: 100 | F76: 75 | G76: 0
A77: Basil | B77: 100 | C77: 75 | D77: 75 | E77: 50 | F77: 25
A78: Beans: Dry/Snap/Lima | B78: 100 | C78: 75 | D78: 75 | E78: 50 | F78: 25 | G78: 0
A79: Beets, Swiss Chard | B79: 200 | C79: 175 | D79: 150 | E79: 100 | F79: 75 | G79: 0
A80: Broccoli, Cabbage, Cauliflower | B80: 175 | C80: 150 | D80: 150 | E80: 75 | F80: 50 | G80: 0
A81: Carrots, Parsnips | B81: 200 | C81: 175 | D81: 150 | E81: 100 | F81: 75 | G81: 0
A82: Celery / Celeriac | B82: 200 | C82: 175 | D82: 150 | E82: 100 | F82: 75 | G82: 0
A83: Collards | B83: 175 | C83: 150 | D83: 150 | E83: 75 | F83: 50 | G83: 0
A84: Cucumbers, Melons | B84: 140 | C84: 120 | D84: 100 | E84: 70 | F84: 30 | G84: 0
A85: Eggplant | B85: 125 | C85: 100 | D85: 75 | E85: 50 | F85: 50 | G85: 0
A86: Garlic | B86: 125 | C86: 100 | D86: 75 | E86: 50 | F86: 50 | G86: 0
A87: Leafy Greens | B87: 140 | C87: 120 | D87: 100 | E87: 60 | F87: 30 | G87: 0
A88: Lettuce / Escarole | B88: 140 | C88: 120 | D88: 100 | E88: 60 | F88: 30 | G88: 0
A89: Muskmelon | B89: 140 | C89: 120 | D89: 100 | E89: 60 | F89: 30 | G89: 0
A90: Okra
A91: Onions, Leeks | B91: 175 | C91: 150 | D91: 150 | E91: 75 | F91: 50 | G91: 0
A92: Ornamental Corn | B92: 140 | C92: 120 | D92: 100 | E92: 80 | F92: 40 | G92: 0
A93: Ornamental Gourds | B93: 140 | C93: 120 | D93: 100 | E93: 80 | F93: 40 | G93: 0
A94: Peas | B94: 125 | C94: 100 | D94: 75 | E94: 50 | F94: 50 | G94: 0
A95: Peppers | B95: 175 | C95: 150 | D95: 100 | E95: 50 | F95: 50 | G95: 0
A96: Potatoes | B96: 200 | C96: 175 | D96: 150 | E96: 100 | F96: 75 | G96: 0
A97: Pumpkins | B97: 175 | C97: 150 | D97: 100 | E97: 80 | F97: 40 | G97: 0
A98: Radishes | B98: 125 | C98: 100 | D98: 100 | E98: 50 | F98: 50 | G98: 0
A99: Rhubarb - Establishment | B99: 150 | C99: 125 | D99: 75 | E99: 50 | F99: 25 | G99: 0
A100: Rhubarb - Maintenance | B100: 200 | C100: 175 | D100: 150 | E100: 100 | F100: 50 | G100: 0
A101: Spinach | B101: 140 | C101: 120 | D101: 100 | E101: 60 | F101: 30 | G101: 0
A102: Sweet Potato | B102: 250 | C102: 200 | D102: 150 | E102: 100 | F102: 50 | G102: 0
A103: Squash | B103: 175 | C103: 150 | D103: 100 | E103: 80 | F103: 40 | G103: 0
A104: Sweet Corn, Early | B104: 140 | C104: 120 | D104: 100 | E104: 80 | F104: 40 | G104: 0
A105: Sweet Corn, Full Season | B105: 140 | C105: 120 | D105: 100 | E105: 80 | F105: 40 | G105: 0
A106: Tomatoes | B106: 200 | C106: 150 | D106: 125 | E106: 100 | F106: 50 | G106: 0
A107: Rutabagas, Turnips | B107: 100 | C107: 75 | D107: 50 | E107: 25 | F107: 25 | G107: 0
A108: Watermelon | B108: 140 | C108: 120 | D108: 100 | E108: 70 | F108: 30 | G108: 0

Sheet STEP 3--Nutrient Needs
A1: Instructions: In the yellow highlighted areas, enter the necessary information. All shaded areas will autofill, but you can overwrite those numbers if you choose. Leave blank whatever you don't know or is not applicable. (If your soil test results are reported in 1000 square feet, multiply the recommendations by 43.5 to convert to pounds per acre)
B2: ENTER YOUR VALUES IN YELLOW SQUARES: | C2: N | D2: P2O5 | E2: K2O
A3: Nitrogen recommendations (lbs/ acre) | B3: =VLOOKUP('STEP 1--Field Information'!E8,'Crop look up'!A2:B45,2,FALSE) ->  | C3: =B3 -> 
A4: Phosphate recommendations (lbs/acre) | B4: =VLOOKUP('STEP 1--Field Information'!E8,'Veg rec lookup'!A2:I54, MATCH('STEP 2--Soil Test Information'!B5,'Veg rec lookup'!A1:J1,0), FALSE) ->  | D4: =B4 -> 
A5: Potash recommendations (lbs/acre) | B5: =VLOOKUP('STEP 1--Field Information'!E8,'Veg rec lookup'!A57:G109,MATCH('STEP 2--Soil Test Information'!B6,'Veg rec lookup'!A56:G56,0), FALSE) ->  | E5: =B5 -> 
A6: % soil organic matter | B6: ='STEP 2--Soil Test Information'!B20 -> 0 | C6: =MIN(40,B6*10) -> 0
A7: Cover crop contributions (lbs N per acre)-- | B7: ='STEP 1--Field Information'!E10 -> 0 | C7: =VLOOKUP('STEP 1--Field Information'!E10,'Crop look up'!D16:E29,2,FALSE) -> 
A8: Manure contributions--Enter tons of manure applied per acre* (read below) | C8: =B8*0.6 -> 0 | D8: =B8*0.24 -> 0 | E8: =B8*0.9 -> 0
A9: Compost contributions--Enter yards compost applied per acre | C9: =B9*0.75 -> 0 | D9: =B9*(0.375*0.8) -> 0 | E9: =B9*(0.375*6) -> 0
A10: Sod contribution--(Enter a "1" in the cell to the right if in sod last season) | B10: 0 | C10: =B10*30 -> 0
A11: Total Nutrients Needed (lbs/Acre) | C11: =MAX(C3-SUM(C6:C10),0) ->  | D11: =MAX(D4-D8-D9,0) ->  | E11: =MAX(E5-E8-E9,0) -> 

Sheet Crop look up (hidden)
B1: middle N needs | C1: MaxN Lbs
A2: Asparagus - Establishment | B2: 50 | D2: Rye | E2: 25
A3: Asparagus - Maintenance | B3: 60 | C3: 75 | D3: Oat, leonard | E3: 10
A4: Basil | B4: 115 | C4: 130 | D4: Hairy vetch, spring incorp | E4: 50
A5: Beans: Dry/Snap/Lima | B5: 50 | D5: Hairy vetch, mid summer incorp | E5: 80
A6: Beets, Swiss Chard | B6: 115 | C6: 130 | D6: Red clover, spring incorp | E6: 50
A7: Blueberries - Establishment | B7: 0 | C7: 30 | D7: Red clover, mid summer incorp | E7: =AVERAGE(70,150) -> 110
A8: Broccoli, Cabbage, Cauliflower | B8: 115 | C8: 130 | D8: Alsike clover | E8: =90 -> 90
A9: Carrots, Parsnips | B9: 130 | C9: 150 | D9: Sweetclover | E9: 100
A10: Celery / Celeriac | B10: 140 | C10: 180 | D10: Sudangrass | E10: 25
A11: Collards, Kale | B11: 115 | C11: 130 | D11: Field Peas | E11: =AVERAGE(90,150) -> 120
A12: Cucumbers, Melons | B12: 115 | C12: 130 | D12: buckwheat | E12: 10
A13: Eggplant | B13: 90 | C13: 100 | D13: Berseem clover | E13: 150
A14: Garlic | B14: 120 | D14: other | E14: Enter estimated N In Cell to Right->
A15: Hops - Establishment | B15: 75 | C15: 100
A16: Hops - Maintenance | B16: 140 | C16: 175 | D16: Alsike clover | E16: 90
A17: Leafy Greens | B17: 85 | C17: 100 | D17: Berseem clover | E17: 150
A18: Lettuce / Escarole | B18: 90 | C18: 125 | D18: Buckwhat | E18: 10
A19: Mixed vegetables | B19: 115 | C19: 130 | D19: Field Peas | E19: 120
A20: Muskmelon | B20: 115 | C20: 130 | D20: Hairy vetch, mid summer incorp | E20: 80
A21: Okra | B21: 115 | C21: 130 | D21: Hairy vetch, spring incorp | E21: 50
A22: Onions, leeks | B22: 140 | C22: 150 | D22: Oat, leonard | E22: 10
A23: Ornamental Corn | B23: 115 | C23: 130 | D23: Other | E23: Enter estimated N in Cell to Right->
A24: Ornamental Gourds | B24: 115 | C24: 130 | D24: Red clover, spring incorp | E24: 50
A25: Peas | B25: 60 | C25: 75 | D25: Red clover, mid summer incorp | E25: 110
A26: Peppers | B26: 140 | C26: 150 | D26: Rye | E26: 25
A27: Potatoes | B27: 150 | C27: 180 | D27: Sudan grass | E27: 25
A28: Pumpkins | B28: 125 | C28: 140 | D28: Sweet clover | E28: 100
A29: Radishes | B29: 50 | D29: No cover crop | E29: 0
A30: Raspberries/Brambles -Establishment | B30: 0 | C30: 30
A31: Raspberries/Brambles -Establishment | B31: 30
A32: Rhubarb - Establishment | B32: 50
A33: Rhubarb - Establishment
A34: Rhubarb - Maintenance | B34: 50
A35: Rhubarb - Maintenance
A36: Rutabagas, Turnips | B36: 50
A37: Spinach | B37: 100 | C37: 110
A38: Squash | B38: 115 | C38: 130
A39: Strawberries - Establishment | B39: 50
A40: Strawberries - Maintenance | B40: 30
A41: Sweet Corn, Early | B41: 110 | C41: 120
A42: Sweet Corn, Full Season | B42: 120 | C42: 140
A43: Sweet Potato | B43: 60 | C43: 75
A44: Tomatoes | B44: 150 | C44: 160
A45: Watermelon | B45: 115 | C45: 130

Sheet STEP 4--Choose N
A1: Instructions: Select your nitrogen amendment from the drop down menu in the yellow cell after reviewing the chart below. If you have a custom blend or a product with a unique analysis, enter the analysis at the bottom of the chart to the right of "other".
A2: Select Your Nitrogen Amendment----> | D2: Soybean meal, OG
A3: Based on your nutrient calculations, you should apply | C3: ='STEP 3--Nutrient Needs'!C11 ->  | D3: lbs N/ acre
A5: POSSIBLE NITROGEN AMENDMENTS
A6: AMENDMENT NAME | B6: ='Appendix--Fertilizer Costs'!B1 -> % N | C6: ='Appendix--Fertilizer Costs'!C1 -> % P2O5 | D6: ='Appendix--Fertilizer Costs'!D1 -> % K20 | E6: ='Appendix--Fertilizer Costs'!E1 -> % Ca | F6: ='Appendix--Fertilizer Costs'!F1 -> % Mg | G6: ='Appendix--Fertilizer Costs'!G1 -> % S | H6: ='Appendix--Fertilizer Costs'!H1 -> Release Rate | I6: ='Appendix--Fertilizer Costs'!I1 -> Price per 50 lb | J6: ='Appendix--Fertilizer Costs'!J1 -> $/lb N
A7: ='N lookup'!A2 -> Alfalfa meal | B7: ='N lookup'!B2 -> 0.03 | C7: ='N lookup'!C2 -> 0.005 | D7: ='N lookup'!D2 -> 0.025 | E7: ='N lookup'!E2 -> 0 | F7: ='N lookup'!F2 -> 0 | G7: ='N lookup'!G2 -> 0 | H7: ='N lookup'!H2 -> slow/ med | I7: ='N lookup'!I2 -> 31.06 | J7: ='N lookup'!J2 -> 20.70666667
A8: ='N lookup'!A3 -> Azomite | B8: ='N lookup'!B3 -> 0 | C8: ='N lookup'!C3 -> 0 | D8: ='N lookup'!D3 -> 0 | E8: ='N lookup'!E3 -> 0 | F8: ='N lookup'!F3 -> 0 | G8: ='N lookup'!G3 -> 0 | H8: ='N lookup'!H3 -> 0 | I8: ='N lookup'!I3 -> 56.81818182 | J8: ='N lookup'!J3 -> 0
A9: ='N lookup'!A4 -> Blood meal | B9: ='N lookup'!B4 -> 0.13 | C9: ='N lookup'!C4 -> 0 | D9: ='N lookup'!D4 -> 0 | E9: ='N lookup'!E4 -> 0 | F9: ='N lookup'!F4 -> 0 | G9: ='N lookup'!G4 -> 0 | H9: ='N lookup'!H4 -> med/ rapid | I9: ='N lookup'!I4 -> 91.49 | J9: ='N lookup'!J4 -> 14.07538462
A10: ='N lookup'!A5 -> Bone char | B10: ='N lookup'!B5 -> 0 | C10: ='N lookup'!C5 -> 0.16 | D10: ='N lookup'!D5 -> 0 | E10: ='N lookup'!E5 -> 0 | F10: ='N lookup'!F5 -> 0 | G10: ='N lookup'!G5 -> 0 | H10: ='N lookup'!H5 -> rapid | I10: ='N lookup'!I5 -> 47.2 | J10: ='N lookup'!J5 -> 0
A11: ='N lookup'!A6 -> Chilean nitrate | B11: ='N lookup'!B6 -> 0.15 | C11: ='N lookup'!C6 -> 0 | D11: ='N lookup'!D6 -> 0.02 | E11: ='N lookup'!E6 -> 0 | F11: ='N lookup'!F6 -> 0 | G11: ='N lookup'!G6 -> 0 | H11: ='N lookup'!H6 -> rapid | I11: ='N lookup'!I6 -> 76.54 | J11: ='N lookup'!J6 -> 10.20533333
A12: ='N lookup'!A7 -> Dehydrated Poultry Manure (Kreher's 5-4-3) | B12: ='N lookup'!B7 -> 0.05 | C12: ='N lookup'!C7 -> 0.04 | D12: ='N lookup'!D7 -> 0.03 | E12: ='N lookup'!E7 -> 0.09 | F12: ='N lookup'!F7 -> 0 | G12: ='N lookup'!G7 -> 0 | H12: ='N lookup'!H7 -> med | I12: ='N lookup'!I7 -> 15 | J12: ='N lookup'!J7 -> 6
A13: ='N lookup'!A8 -> Dehydrated Poultry Manure (Kreher's 4-3-10) | B13: ='N lookup'!B8 -> 0.04 | C13: ='N lookup'!C8 -> 0.03 | D13: ='N lookup'!D8 -> 0.1 | E13: ='N lookup'!E8 -> 0 | F13: ='N lookup'!F8 -> 0 | G13: ='N lookup'!G8 -> 0 | H13: ='N lookup'!H8 -> med | I13: ='N lookup'!I8 -> 22.5 | J13: ='N lookup'!J8 -> 11.25
A14: ='N lookup'!A9 -> Dehydrated Poultry Manure (Kreher's 7-2-6) | B14: ='N lookup'!B9 -> 0.07 | C14: ='N lookup'!C9 -> 0.02 | D14: ='N lookup'!D9 -> 0.06 | E14: ='N lookup'!E9 -> 0 | F14: ='N lookup'!F9 -> 0 | G14: ='N lookup'!G9 -> 0 | H14: ='N lookup'!H9 -> med | I14: ='N lookup'!I9 -> 28.75 | J14: ='N lookup'!J9 -> 8.214285714
A15: ='N lookup'!A10 -> Feather meal | B15: ='N lookup'!B10 -> 0.13 | C15: ='N lookup'!C10 -> 0 | D15: ='N lookup'!D10 -> 0 | E15: ='N lookup'!E10 -> 0 | F15: ='N lookup'!F10 -> 0 | G15: ='N lookup'!G10 -> 0 | H15: ='N lookup'!H10 -> med | I15: ='N lookup'!I10 -> 56.77 | J15: ='N lookup'!J10 -> 8.733846154
A16: ='N lookup'!A11 -> Fish emulsion | B16: ='N lookup'!B11 -> 0.02 | C16: ='N lookup'!C11 -> 0.05 | D16: ='N lookup'!D11 -> 0.0002 | E16: ='N lookup'!E11 -> 0 | F16: ='N lookup'!F11 -> 0 | G16: ='N lookup'!G11 -> 0 | H16: ='N lookup'!H11 -> rapid | I16: ='N lookup'!I11 -> 109 | J16: ='N lookup'!J11 -> 0
A17: ='N lookup'!A12 -> Fish meal | B17: ='N lookup'!B12 -> 0.067 | C17: ='N lookup'!C12 -> 0.11 | D17: ='N lookup'!D12 -> 0.004 | E17: ='N lookup'!E12 -> 0 | F17: ='N lookup'!F12 -> 0 | G17: ='N lookup'!G12 -> 0 | H17: ='N lookup'!H12 -> med | I17: ='N lookup'!I12 -> 112 | J17: ='N lookup'!J12 -> 33.43283582
A18: ='N lookup'!A13 -> Grioux's Composted Poultry Manure | B18: ='N lookup'!B13 -> 0.02 | C18: ='N lookup'!C13 -> 0.03 | D18: ='N lookup'!D13 -> 0.015 | E18: ='N lookup'!E13 -> 0.07 | F18: ='N lookup'!F13 -> 0.01 | G18: ='N lookup'!G13 -> 0.05 | H18: ='N lookup'!H13 -> med | I18: ='N lookup'!I13 -> 1 | J18: ='N lookup'!J13 -> 1
A19: ='N lookup'!A14 -> Giroux's pellets | B19: ='N lookup'!B14 -> 0.04 | C19: ='N lookup'!C14 -> 0.03 | D19: ='N lookup'!D14 -> 0.02 | E19: ='N lookup'!E14 -> 0 | F19: ='N lookup'!F14 -> 0 | G19: ='N lookup'!G14 -> 0 | H19: ='N lookup'!H14 -> med | I19: ='N lookup'!I14 -> 8.3 | J19: ='N lookup'!J14 -> 4.15
A20: ='N lookup'!A15 -> Ag-Lime | B20: ='N lookup'!B15 -> 0 | C20: ='N lookup'!C15 -> 0 | D20: ='N lookup'!D15 -> 0 | E20: ='N lookup'!E15 -> 0 | F20: ='N lookup'!F15 -> 0 | G20: ='N lookup'!G15 -> 0 | H20: ='N lookup'!H15 -> 0 | I20: ='N lookup'!I15 -> 200 | J20: ='N lookup'!J15 -> 0
A21: ='N lookup'!A16 -> Makro 60 | B21: ='N lookup'!B16 -> 0 | C21: ='N lookup'!C16 -> 0 | D21: ='N lookup'!D16 -> 0.6 | E21: ='N lookup'!E16 -> 0 | F21: ='N lookup'!F16 -> 0 | G21: ='N lookup'!G16 -> 0 | H21: ='N lookup'!H16 -> 0 | I21: ='N lookup'!I16 -> 36.25 | J21: ='N lookup'!J16 -> 0
A22: ='N lookup'!A17 -> Organo-Phos w. humic acid | B22: ='N lookup'!B17 -> 0 | C22: ='N lookup'!C17 -> 0.12 | D22: ='N lookup'!D17 -> 0 | E22: ='N lookup'!E17 -> 0.25 | F22: ='N lookup'!F17 -> 0 | G22: ='N lookup'!G17 -> 0 | H22: ='N lookup'!H17 -> 0 | I22: ='N lookup'!I17 -> 0 | J22: ='N lookup'!J17 -> 0
A23: ='N lookup'!A18 -> Polysulfate | B23: ='N lookup'!B18 -> 0 | C23: ='N lookup'!C18 -> 0 | D23: ='N lookup'!D18 -> 0.14 | E23: ='N lookup'!E18 -> 0.12 | F23: ='N lookup'!F18 -> 0.036 | G23: ='N lookup'!G18 -> 0.19 | H23: ='N lookup'!H18 -> 0 | I23: ='N lookup'!I18 -> 20 | J23: ='N lookup'!J18 -> 0
A24: Blended Fertilizers
A25: ='N lookup'!A19 -> Soybean meal | B25: ='N lookup'!B19 -> 0.07 | C25: ='N lookup'!C19 -> 0.01 | D25: ='N lookup'!D19 -> 0.02 | E25: ='N lookup'!E19 -> 0 | F25: ='N lookup'!F19 -> 0.03 | G25: ='N lookup'!G19 -> 0 | H25: ='N lookup'!H19 -> slow/ med | I25: ='N lookup'!I19 -> 17 | J25: ='N lookup'!J19 -> 4.857142857
A26: ='N lookup'!A20 -> Soybean meal, OG | B26: ='N lookup'!B20 -> 0.07 | C26: ='N lookup'!C20 -> 0.01 | D26: ='N lookup'!D20 -> 0.02 | E26: ='N lookup'!E20 -> 0 | F26: ='N lookup'!F20 -> 0 | G26: ='N lookup'!G20 -> 0 | H26: ='N lookup'!H20 -> slow/ med | I26: ='N lookup'!I20 -> 43.6 | J26: ='N lookup'!J20 -> 12.45714286
A27: ='N lookup'!A21 -> Sulfate of potash | B27: ='N lookup'!B21 -> 0 | C27: ='N lookup'!C21 -> 0 | D27: ='N lookup'!D21 -> 0.5 | E27: ='N lookup'!E21 -> 0 | F27: ='N lookup'!F21 -> 0 | G27: ='N lookup'!G21 -> 0.17 | H27: ='N lookup'!H21 -> rapid | I27: ='N lookup'!I21 -> 34.14 | J27: ='N lookup'!J21 -> 0
A28: ='N lookup'!A22 -> SOP soluble | B28: ='N lookup'!B22 -> 0 | C28: ='N lookup'!C22 -> 0 | D28: ='N lookup'!D22 -> 0.52 | E28: ='N lookup'!E22 -> 0 | F28: ='N lookup'!F22 -> 0 | G28: ='N lookup'!G22 -> 0 | H28: ='N lookup'!H22 -> 0 | I28: ='N lookup'!I22 -> 54.3 | J28: ='N lookup'!J22 -> 0
A29: ='N lookup'!A23 -> Triple super phosphate | B29: ='N lookup'!B23 -> 0.18 | C29: ='N lookup'!C23 -> 0.46 | D29: ='N lookup'!D23 -> 0 | E29: ='N lookup'!E23 -> 0 | F29: ='N lookup'!F23 -> 0 | G29: ='N lookup'!G23 -> 0 | H29: ='N lookup'!H23 -> rapid | I29: ='N lookup'!I23 -> 24.5 | J29: ='N lookup'!J23 -> 0
A30: ='N lookup'!A24 -> Urea | B30: ='N lookup'!B24 -> 0.46 | C30: ='N lookup'!C24 -> 0 | D30: ='N lookup'!D24 -> 0 | E30: ='N lookup'!E24 -> 0 | F30: ='N lookup'!F24 -> 0 | G30: ='N lookup'!G24 -> 0 | H30: ='N lookup'!H24 -> rapid | I30: ='N lookup'!I24 -> 18.75 | J30: ='N lookup'!J24 -> 0.8152173913
A31: NONE NEEDED | B31: 0 | C31: 0 | D31: 0 | E31: 0 | F31: 0 | G31: 0 | I31: 0 | J31: 0
A32: Naturesafe 10-2-8 | B32: 0.1 | C32: 0.02 | D32: 0.08 | J32: =I32/B32/50 -> 0
A37: Blue shading indicates an organic material, but check with your certifying agency before using.

Sheet N lookup (hidden)
A1: Material | B1: % N | C1: %P2 O5 | D1: %K20 | E1: %Ca | F1: %Mg | G1: %S | H1: Relative Availability | I1: Price per 50 lb | J1: Price per pound of N | K1: Pounds of fertilizer to meet your N needs (for your specified area) | L1: P205 Contributions | M1: K20 Contributions | N1: PoundsCa | O1: Pounds Mg | P1: Pounds S | Q1: Estimated Cost of fertilizer | R1: Divide by to accout for availability (% avail)
A2: ='Appendix--Fertilizer Costs'!A2 -> Alfalfa meal | B2: ='Appendix--Fertilizer Costs'!B2 -> 0.03 | C2: ='Appendix--Fertilizer Costs'!C2 -> 0.005 | D2: ='Appendix--Fertilizer Costs'!D2 -> 0.025 | E2: ='Appendix--Fertilizer Costs'!E2 -> 0 | F2: ='Appendix--Fertilizer Costs'!F2 -> 0 | G2: ='Appendix--Fertilizer Costs'!G2 -> 0 | H2: ='Appendix--Fertilizer Costs'!H2 -> slow/ med | I2: ='Appendix--Fertilizer Costs'!I2 -> 31.06 | J2: ='Appendix--Fertilizer Costs'!J2 -> 20.70666667 | K2: =('STEP 3--Nutrient Needs'!C11/B2)/R2 ->  | L2: =K2*C2 ->  | M2: =K2*D2 ->  | Q2: =K2*J2*B2 ->  | R2: 0.6
A3: ='Appendix--Fertilizer Costs'!A3 -> Azomite | B3: ='Appendix--Fertilizer Costs'!B3 -> 0 | C3: ='Appendix--Fertilizer Costs'!C3 -> 0 | D3: ='Appendix--Fertilizer Costs'!D3 -> 0 | E3: ='Appendix--Fertilizer Costs'!E3 -> 0 | F3: ='Appendix--Fertilizer Costs'!F3 -> 0 | G3: ='Appendix--Fertilizer Costs'!G3 -> 0 | H3: ='Appendix--Fertilizer Costs'!H3 -> 0 | I3: ='Appendix--Fertilizer Costs'!I3 -> 56.81818182 | J3: ='Appendix--Fertilizer Costs'!J3 -> 0 | K3: =('STEP 3--Nutrient Needs'!C11/B3)/R3 ->  | P3: =G3*K3 ->  | Q3: =K3*B3*J3 ->  | R3: 1
A4: ='Appendix--Fertilizer Costs'!A4 -> Blood meal | B4: ='Appendix--Fertilizer Costs'!B4 -> 0.13 | C4: ='Appendix--Fertilizer Costs'!C4 -> 0 | D4: ='Appendix--Fertilizer Costs'!D4 -> 0 | E4: ='Appendix--Fertilizer Costs'!E4 -> 0 | F4: ='Appendix--Fertilizer Costs'!F4 -> 0 | G4: ='Appendix--Fertilizer Costs'!G4 -> 0 | H4: ='Appendix--Fertilizer Costs'!H4 -> med/ rapid | I4: ='Appendix--Fertilizer Costs'!I4 -> 91.49 | J4: ='Appendix--Fertilizer Costs'!J4 -> 14.07538462 | K4: =('STEP 3--Nutrient Needs'!C11/B4)/R4 ->  | L4: =K4*C4 ->  | M4: =K4*D4 ->  | R4: 0.61
A5: ='Appendix--Fertilizer Costs'!A6 -> Bone char | B5: ='Appendix--Fertilizer Costs'!B6 -> 0 | C5: ='Appendix--Fertilizer Costs'!C6 -> 0.16 | D5: ='Appendix--Fertilizer Costs'!D6 -> 0 | E5: ='Appendix--Fertilizer Costs'!E6 -> 0 | F5: ='Appendix--Fertilizer Costs'!F6 -> 0 | G5: ='Appendix--Fertilizer Costs'!G6 -> 0 | H5: ='Appendix--Fertilizer Costs'!H6 -> rapid | I5: ='Appendix--Fertilizer Costs'!I6 -> 47.2 | J5: ='Appendix--Fertilizer Costs'!J6 -> 0 | K5: =('STEP 3--Nutrient Needs'!C11/B5)/R5 ->  | L5: =K5*C5 ->  | M5: 0 | R5: 0.32
A6: ='Appendix--Fertilizer Costs'!A8 -> Chilean nitrate | B6: ='Appendix--Fertilizer Costs'!B8 -> 0.15 | C6: ='Appendix--Fertilizer Costs'!C8 -> 0 | D6: ='Appendix--Fertilizer Costs'!D8 -> 0.02 | E6: ='Appendix--Fertilizer Costs'!E8 -> 0 | F6: ='Appendix--Fertilizer Costs'!F8 -> 0 | G6: ='Appendix--Fertilizer Costs'!G8 -> 0 | H6: ='Appendix--Fertilizer Costs'!H8 -> rapid | I6: ='Appendix--Fertilizer Costs'!I8 -> 76.54 | J6: ='Appendix--Fertilizer Costs'!J8 -> 10.20533333 | K6: =('STEP 3--Nutrient Needs'!C11/B6)/R6 ->  | N6: =K6*E6 ->  | R6: 1
A7: ='Appendix--Fertilizer Costs'!A9 -> Dehydrated Poultry Manure (Kreher's 5-4-3) | B7: ='Appendix--Fertilizer Costs'!B9 -> 0.05 | C7: ='Appendix--Fertilizer Costs'!C9 -> 0.04 | D7: ='Appendix--Fertilizer Costs'!D9 -> 0.03 | E7: ='Appendix--Fertilizer Costs'!E9 -> 0.09 | F7: ='Appendix--Fertilizer Costs'!F9 -> 0 | G7: ='Appendix--Fertilizer Costs'!G9 -> 0 | H7: ='Appendix--Fertilizer Costs'!H9 -> med | I7: ='Appendix--Fertilizer Costs'!I9 -> 15 | J7: ='Appendix--Fertilizer Costs'!J9 -> 6 | K7: =('STEP 3--Nutrient Needs'!C11/B7)/R7 ->  | R7: 1
A8: ='Appendix--Fertilizer Costs'!A10 -> Dehydrated Poultry Manure (Kreher's 4-3-10) | B8: ='Appendix--Fertilizer Costs'!B10 -> 0.04 | C8: ='Appendix--Fertilizer Costs'!C10 -> 0.03 | D8: ='Appendix--Fertilizer Costs'!D10 -> 0.1 | E8: ='Appendix--Fertilizer Costs'!E10 -> 0 | F8: ='Appendix--Fertilizer Costs'!F10 -> 0 | G8: ='Appendix--Fertilizer Costs'!G10 -> 0 | H8: ='Appendix--Fertilizer Costs'!H10 -> med | I8: ='Appendix--Fertilizer Costs'!I10 -> 22.5 | J8: ='Appendix--Fertilizer Costs'!J10 -> 11.25 | K8: =('STEP 3--Nutrient Needs'!C11/B8)/R8 ->  | L8: =K8*C8 ->  | M8: =K8*D8 ->  | N8: =K8*E8 ->  | O8: =F8*K8 ->  | P8: =G8*K8 ->  | R8: 0.6
A9: ='Appendix--Fertilizer Costs'!A11 -> Dehydrated Poultry Manure (Kreher's 7-2-6) | B9: ='Appendix--Fertilizer Costs'!B11 -> 0.07 | C9: ='Appendix--Fertilizer Costs'!C11 -> 0.02 | D9: ='Appendix--Fertilizer Costs'!D11 -> 0.06 | E9: ='Appendix--Fertilizer Costs'!E11 -> 0 | F9: ='Appendix--Fertilizer Costs'!F11 -> 0 | G9: ='Appendix--Fertilizer Costs'!G11 -> 0 | H9: ='Appendix--Fertilizer Costs'!H11 -> med | I9: ='Appendix--Fertilizer Costs'!I11 -> 28.75 | J9: ='Appendix--Fertilizer Costs'!J11 -> 8.214285714 | K9: =('STEP 3--Nutrient Needs'!C11/B9)/R9 ->  | L9: =K9*C9 ->  | M9: =K9*D9 ->  | N9: =K9*E9 ->  | O9: =F9*K9 ->  | P9: =G9*K9 ->  | R9: 0.6
A10: ='Appendix--Fertilizer Costs'!A16 -> Feather meal | B10: ='Appendix--Fertilizer Costs'!B16 -> 0.13 | C10: ='Appendix--Fertilizer Costs'!C16 -> 0 | D10: ='Appendix--Fertilizer Costs'!D16 -> 0 | E10: ='Appendix--Fertilizer Costs'!E16 -> 0 | F10: ='Appendix--Fertilizer Costs'!F16 -> 0 | G10: ='Appendix--Fertilizer Costs'!G16 -> 0 | H10: ='Appendix--Fertilizer Costs'!H16 -> med | I10: ='Appendix--Fertilizer Costs'!I16 -> 56.77 | J10: ='Appendix--Fertilizer Costs'!J16 -> 8.733846154 | K10: =('STEP 3--Nutrient Needs'!C11/B10)/R10 ->  | R10: 0.65
A11: ='Appendix--Fertilizer Costs'!A17 -> Fish emulsion | B11: ='Appendix--Fertilizer Costs'!B17 -> 0.02 | C11: ='Appendix--Fertilizer Costs'!C17 -> 0.05 | D11: ='Appendix--Fertilizer Costs'!D17 -> 0.0002 | E11: ='Appendix--Fertilizer Costs'!E17 -> 0 | F11: ='Appendix--Fertilizer Costs'!F17 -> 0 | G11: ='Appendix--Fertilizer Costs'!G17 -> 0 | H11: ='Appendix--Fertilizer Costs'!H17 -> rapid | I11: ='Appendix--Fertilizer Costs'!I17 -> 109 | J11: ='Appendix--Fertilizer Costs'!J17 -> 0 | K11: =('STEP 3--Nutrient Needs'!C11/B11)/R11 ->  | L11: =K11*C11 ->  | R11: 1
A12: ='Appendix--Fertilizer Costs'!A18 -> Fish meal | B12: ='Appendix--Fertilizer Costs'!B18 -> 0.067 | C12: ='Appendix--Fertilizer Costs'!C18 -> 0.11 | D12: ='Appendix--Fertilizer Costs'!D18 -> 0.004 | E12: ='Appendix--Fertilizer Costs'!E18 -> 0 | F12: ='Appendix--Fertilizer Costs'!F18 -> 0 | G12: ='Appendix--Fertilizer Costs'!G18 -> 0 | H12: ='Appendix--Fertilizer Costs'!H18 -> med | I12: ='Appendix--Fertilizer Costs'!I18 -> 112 | J12: ='Appendix--Fertilizer Costs'!J18 -> 33.43283582 | K12: =('STEP 3--Nutrient Needs'!C11/B12)/R12 ->  | R12: 0.65
A13: ='Appendix--Fertilizer Costs'!A19 -> Grioux's Composted Poultry Manure | B13: ='Appendix--Fertilizer Costs'!B19 -> 0.02 | C13: ='Appendix--Fertilizer Costs'!C19 -> 0.03 | D13: ='Appendix--Fertilizer Costs'!D19 -> 0.015 | E13: ='Appendix--Fertilizer Costs'!E19 -> 0.07 | F13: ='Appendix--Fertilizer Costs'!F19 -> 0.01 | G13: ='Appendix--Fertilizer Costs'!G19 -> 0.05 | H13: ='Appendix--Fertilizer Costs'!H19 -> med | I13: ='Appendix--Fertilizer Costs'!I19 -> 1 | J13: ='Appendix--Fertilizer Costs'!J19 -> 1 | K13: =('STEP 3--Nutrient Needs'!C11/B13)/R13 ->  | M13: =K13*D13 ->  | N13: =K13*E13 ->  | O13: =F13*K13 ->  | P13: =G13*K13 ->  | R13: 0.6
A14: Giroux's pellets | B14: 0.04 | C14: 0.03 | D14: 0.02 | H14: med | I14: 8.3 | J14: =I14*2/(B14*100) -> 4.15 | K14: =('STEP 3--Nutrient Needs'!C11/B14)/R14 ->  | N14: =K14*E14 ->  | O14: =F14*K14 ->  | P14: =G14*K14 ->  | Q14: =K14*B14*J14 ->  | R14: 0.6
A15: ='Appendix--Fertilizer Costs'!A26 -> Ag-Lime | B15: ='Appendix--Fertilizer Costs'!B26 -> 0 | C15: ='Appendix--Fertilizer Costs'!C26 -> 0 | D15: ='Appendix--Fertilizer Costs'!D26 -> 0 | E15: ='Appendix--Fertilizer Costs'!E26 -> 0 | F15: ='Appendix--Fertilizer Costs'!F26 -> 0 | G15: ='Appendix--Fertilizer Costs'!G26 -> 0 | H15: ='Appendix--Fertilizer Costs'!H26 -> 0 | I15: ='Appendix--Fertilizer Costs'!I26 -> 200 | J15: ='Appendix--Fertilizer Costs'!J26 -> 0 | K15: =('STEP 3--Nutrient Needs'!C11/B15)/R15 ->  | Q15: =K15*B15*J15 ->  | R15: 0.7
A16: ='Appendix--Fertilizer Costs'!A27 -> Makro 60 | B16: ='Appendix--Fertilizer Costs'!B27 -> 0 | C16: ='Appendix--Fertilizer Costs'!C27 -> 0 | D16: ='Appendix--Fertilizer Costs'!D27 -> 0.6 | E16: ='Appendix--Fertilizer Costs'!E27 -> 0 | F16: ='Appendix--Fertilizer Costs'!F27 -> 0 | G16: ='Appendix--Fertilizer Costs'!G27 -> 0 | H16: ='Appendix--Fertilizer Costs'!H27 -> 0 | I16: ='Appendix--Fertilizer Costs'!I27 -> 36.25 | J16: ='Appendix--Fertilizer Costs'!J27 -> 0 | K16: =('STEP 3--Nutrient Needs'!C11/B16)/R16 ->  | L16: =K16*C16 ->  | M16: =K16*D16 ->  | R16: 0.6
A17: ='Appendix--Fertilizer Costs'!A31 -> Organo-Phos w. humic acid | B17: ='Appendix--Fertilizer Costs'!B31 -> 0 | C17: ='Appendix--Fertilizer Costs'!C31 -> 0.12 | D17: ='Appendix--Fertilizer Costs'!D31 -> 0 | E17: ='Appendix--Fertilizer Costs'!E31 -> 0.25 | F17: ='Appendix--Fertilizer Costs'!F31 -> 0 | G17: ='Appendix--Fertilizer Costs'!G31 -> 0 | H17: ='Appendix--Fertilizer Costs'!H31 -> 0 | I17: ='Appendix--Fertilizer Costs'!I31 -> 0 | J17: ='Appendix--Fertilizer Costs'!J31 -> 0 | K17: =('STEP 3--Nutrient Needs'!C11/B17)/R17 ->  | N17: =K17*E17 ->  | O17: =F17*K17 ->  | P17: =G17*K17 ->  | R17: 0.75
A18: ='Appendix--Fertilizer Costs'!A34 -> Polysulfate | B18: ='Appendix--Fertilizer Costs'!B34 -> 0 | C18: ='Appendix--Fertilizer Costs'!C34 -> 0 | D18: ='Appendix--Fertilizer Costs'!D34 -> 0.14 | E18: ='Appendix--Fertilizer Costs'!E34 -> 0.12 | F18: ='Appendix--Fertilizer Costs'!F34 -> 0.036 | G18: ='Appendix--Fertilizer Costs'!G34 -> 0.19 | H18: ='Appendix--Fertilizer Costs'!H34 -> 0 | I18: ='Appendix--Fertilizer Costs'!I34 -> 20 | J18: ='Appendix--Fertilizer Costs'!J34 -> 0 | K18: =('STEP 3--Nutrient Needs'!C11/B18)/R18 ->  | O18: =F18*K18 ->  | R18: 1
A19: ='Appendix--Fertilizer Costs'!A37 -> Soybean meal | B19: ='Appendix--Fertilizer Costs'!B37 -> 0.07 | C19: ='Appendix--Fertilizer Costs'!C37 -> 0.01 | D19: ='Appendix--Fertilizer Costs'!D37 -> 0.02 | E19: ='Appendix--Fertilizer Costs'!E37 -> 0 | F19: ='Appendix--Fertilizer Costs'!F37 -> 0.03 | G19: ='Appendix--Fertilizer Costs'!G37 -> 0 | H19: ='Appendix--Fertilizer Costs'!H37 -> slow/ med | I19: ='Appendix--Fertilizer Costs'!I37 -> 17 | J19: ='Appendix--Fertilizer Costs'!J37 -> 4.857142857 | K19: =('STEP 3--Nutrient Needs'!C11/B19)/R19 ->  | R19: 0.65
A20: ='Appendix--Fertilizer Costs'!A38 -> Soybean meal, OG | B20: ='Appendix--Fertilizer Costs'!B38 -> 0.07 | C20: ='Appendix--Fertilizer Costs'!C38 -> 0.01 | D20: ='Appendix--Fertilizer Costs'!D38 -> 0.02 | E20: ='Appendix--Fertilizer Costs'!E38 -> 0 | F20: ='Appendix--Fertilizer Costs'!F38 -> 0 | G20: ='Appendix--Fertilizer Costs'!G38 -> 0 | H20: ='Appendix--Fertilizer Costs'!H38 -> slow/ med | I20: ='Appendix--Fertilizer Costs'!I38 -> 43.6 | J20: ='Appendix--Fertilizer Costs'!J38 -> 12.45714286 | K20: =('STEP 3--Nutrient Needs'!C11/B20)/R20 ->  | R20: 0.65
A21: ='Appendix--Fertilizer Costs'!A39 -> Sulfate of potash | B21: ='Appendix--Fertilizer Costs'!B39 -> 0 | C21: ='Appendix--Fertilizer Costs'!C39 -> 0 | D21: ='Appendix--Fertilizer Costs'!D39 -> 0.5 | E21: ='Appendix--Fertilizer Costs'!E39 -> 0 | F21: ='Appendix--Fertilizer Costs'!F39 -> 0 | G21: ='Appendix--Fertilizer Costs'!G39 -> 0.17 | H21: ='Appendix--Fertilizer Costs'!H39 -> rapid | I21: ='Appendix--Fertilizer Costs'!I39 -> 34.14 | J21: ='Appendix--Fertilizer Costs'!J39 -> 0 | K21: =('STEP 3--Nutrient Needs'!C11/B21)/R21 ->  | R21: 0.65
A22: ='Appendix--Fertilizer Costs'!A40 -> SOP soluble | B22: ='Appendix--Fertilizer Costs'!B40 -> 0 | C22: ='Appendix--Fertilizer Costs'!C40 -> 0 | D22: ='Appendix--Fertilizer Costs'!D40 -> 0.52 | E22: ='Appendix--Fertilizer Costs'!E40 -> 0 | F22: ='Appendix--Fertilizer Costs'!F40 -> 0 | G22: ='Appendix--Fertilizer Costs'!G40 -> 0 | H22: ='Appendix--Fertilizer Costs'!H40 -> 0 | I22: ='Appendix--Fertilizer Costs'!I40 -> 54.3 | J22: ='Appendix--Fertilizer Costs'!J40 -> 0 | K22: =('STEP 3--Nutrient Needs'!C11/B22)/R22 ->  | R22: 0.65
A23: ='Appendix--Fertilizer Costs'!A41 -> Triple super phosphate | B23: ='Appendix--Fertilizer Costs'!B41 -> 0.18 | C23: ='Appendix--Fertilizer Costs'!C41 -> 0.46 | D23: ='Appendix--Fertilizer Costs'!D41 -> 0 | E23: ='Appendix--Fertilizer Costs'!E41 -> 0 | F23: ='Appendix--Fertilizer Costs'!F41 -> 0 | G23: ='Appendix--Fertilizer Costs'!G41 -> 0 | H23: ='Appendix--Fertilizer Costs'!H41 -> rapid | I23: ='Appendix--Fertilizer Costs'!I41 -> 24.5 | J23: ='Appendix--Fertilizer Costs'!J41 -> 0 | K23: =('STEP 3--Nutrient Needs'!C11/B23)/R23 ->  | R23: 0.8
A24: ='Appendix--Fertilizer Costs'!A42 -> Urea | B24: ='Appendix--Fertilizer Costs'!B42 -> 0.46 | C24: ='Appendix--Fertilizer Costs'!C42 -> 0 | D24: ='Appendix--Fertilizer Costs'!D42 -> 0 | E24: ='Appendix--Fertilizer Costs'!E42 -> 0 | F24: ='Appendix--Fertilizer Costs'!F42 -> 0 | G24: ='Appendix--Fertilizer Costs'!G42 -> 0 | H24: ='Appendix--Fertilizer Costs'!H42 -> rapid | I24: ='Appendix--Fertilizer Costs'!I42 -> 18.75 | J24: ='Appendix--Fertilizer Costs'!J42 -> 0.8152173913 | K24: =('STEP 3--Nutrient Needs'!C11/B24)/R24 ->  | R24: 0.8
A25: ='STEP 4--Choose N'!A31 -> NONE NEEDED | B25: ='STEP 4--Choose N'!B31 -> 0 | C25: ='STEP 4--Choose N'!C31 -> 0 | D25: ='STEP 4--Choose N'!D31 -> 0 | E25: ='STEP 4--Choose N'!E31 -> 0 | F25: ='STEP 4--Choose N'!F31 -> 0 | G25: ='STEP 4--Choose N'!G31 -> 0 | H25: ='STEP 4--Choose N'!H31 -> 0 | I25: ='STEP 4--Choose N'!I31 -> 0 | J25: ='STEP 4--Choose N'!J31 -> 0 | K25: ='STEP 4--Choose N'!K30 -> 0 | L25: 0 | M25: 0 | N25: 0 | O25: 0 | P25: 0 | Q25: 0 | R25: 0
A26: ='STEP 4--Choose N'!A32 -> Naturesafe 10-2-8 | B26: ='STEP 4--Choose N'!B32 -> 0.1 | C26: ='STEP 4--Choose N'!C32 -> 0.02 | D26: ='STEP 4--Choose N'!D32 -> 0.08 | E26: ='STEP 4--Choose N'!E32 -> 0 | F26: ='STEP 4--Choose N'!F32 -> 0 | G26: ='STEP 4--Choose N'!G32 -> 0 | H26: ='STEP 4--Choose N'!H32 -> 0 | I26: ='STEP 4--Choose N'!I32 -> 0 | J26: ='STEP 4--Choose N'!J32 -> 0 | K26: =('STEP 3--Nutrient Needs'!C11/B26)/R26 ->  | L26: =K26*C26 ->  | M26: =K26*D26 ->  | Q26: =K26*B26*J26 ->  | R26: 0.7
B47: ='STEP 4--Choose N'!B32 -> 0.1 | C47: ='STEP 4--Choose N'!C32 -> 0.02 | D47: ='STEP 4--Choose N'!D32 -> 0.08 | E47: ='STEP 4--Choose N'!E32 -> 0 | F47: ='STEP 4--Choose N'!F32 -> 0 | G47: ='STEP 4--Choose N'!G32 -> 0 | H47: ='STEP 4--Choose N'!H32 -> 0 | I47: ='STEP 4--Choose N'!#REF! ->  | J47: ='STEP 4--Choose N'!J32 -> 0 | K47: =('STEP 3--Nutrient Needs'!C11*'STEP 1--Field Information'!F23/B47)/R47 ->  | L47: =K47*C47 ->  | M47: =K47*D47 ->  | Q47: =K47*B47*J47 ->  | R47: 0.65

Sheet STEP 5--Choose P
A1: Instructions: Select your phosphate amendment from the drop down menu in the yellow cell after reviewing the chart below.
A2: Select Your Phosphate Amendment-> | D2: NONE NEEDED
A3: Your N selection contributes | C3: =VLOOKUP('STEP 4--Choose N'!D2,'N lookup'!A2:Q47,12,FALSE) ->  | D3: lbs P205/ acre
A4: You should apply an additional | C4: =('STEP 3--Nutrient Needs'!D11)-VLOOKUP('STEP 4--Choose N'!D2,'N lookup'!A2:Q47,12,FALSE) ->  | D4: lbs P205/ acre
A6: POSSIBLE PHOSPHATE AMENDMENTS
A7: ='Appendix--Fertilizer Costs'!A1 -> MATERIAL | B7: ='Appendix--Fertilizer Costs'!B1 -> % N | C7: ='Appendix--Fertilizer Costs'!C1 -> % P2O5 | D7: ='Appendix--Fertilizer Costs'!D1 -> % K20 | E7: ='Appendix--Fertilizer Costs'!E1 -> % Ca | F7: ='Appendix--Fertilizer Costs'!F1 -> % Mg | G7: ='Appendix--Fertilizer Costs'!G1 -> % S | H7: ='Appendix--Fertilizer Costs'!H1 -> Release Rate | I7: ='Appendix--Fertilizer Costs'!I1 -> Price per 50 lb | J7: ='Appendix--Fertilizer Costs'!K1 -> $/lb P
A8: ='Appendix--Fertilizer Costs'!A5 -> Bone meal, OG | B8: ='Appendix--Fertilizer Costs'!B5 -> 0.03 | C8: ='Appendix--Fertilizer Costs'!C5 -> 0.15 | D8: ='Appendix--Fertilizer Costs'!D5 -> 0 | E8: ='Appendix--Fertilizer Costs'!E5 -> 0 | F8: ='Appendix--Fertilizer Costs'!F5 -> 0 | G8: ='Appendix--Fertilizer Costs'!G5 -> 0 | H8: ='Appendix--Fertilizer Costs'!H5 -> med | I8: ='Appendix--Fertilizer Costs'!I5 -> 71 | J8: ='Appendix--Fertilizer Costs'!K5 -> 9.466666667
A9: ='Appendix--Fertilizer Costs'!A6 -> Bone char | B9: ='Appendix--Fertilizer Costs'!B6 -> 0 | C9: ='Appendix--Fertilizer Costs'!C6 -> 0.16 | D9: ='Appendix--Fertilizer Costs'!D6 -> 0 | E9: ='Appendix--Fertilizer Costs'!E6 -> 0 | F9: ='Appendix--Fertilizer Costs'!F6 -> 0 | G9: ='Appendix--Fertilizer Costs'!G6 -> 0 | H9: ='Appendix--Fertilizer Costs'!H6 -> rapid | I9: ='Appendix--Fertilizer Costs'!I6 -> 47.2 | J9: ='Appendix--Fertilizer Costs'!K6 -> 5.9
A10: ='Appendix--Fertilizer Costs'!A10 -> Dehydrated Poultry Manure (Kreher's 4-3-10) | B10: ='Appendix--Fertilizer Costs'!B10 -> 0.04 | C10: ='Appendix--Fertilizer Costs'!C10 -> 0.03 | D10: ='Appendix--Fertilizer Costs'!D10 -> 0.1 | E10: ='Appendix--Fertilizer Costs'!E10 -> 0 | F10: ='Appendix--Fertilizer Costs'!F10 -> 0 | G10: ='Appendix--Fertilizer Costs'!G10 -> 0 | H10: ='Appendix--Fertilizer Costs'!H10 -> med | I10: ='Appendix--Fertilizer Costs'!I10 -> 22.5 | J10: ='Appendix--Fertilizer Costs'!K10 -> 15
A11: ='Appendix--Fertilizer Costs'!A11 -> Dehydrated Poultry Manure (Kreher's 7-2-6) | B11: ='Appendix--Fertilizer Costs'!B11 -> 0.07 | C11: ='Appendix--Fertilizer Costs'!C11 -> 0.02 | D11: ='Appendix--Fertilizer Costs'!D11 -> 0.06 | E11: ='Appendix--Fertilizer Costs'!E11 -> 0 | F11: ='Appendix--Fertilizer Costs'!F11 -> 0 | G11: ='Appendix--Fertilizer Costs'!G11 -> 0 | H11: ='Appendix--Fertilizer Costs'!H11 -> med | I11: ='Appendix--Fertilizer Costs'!I11 -> 28.75 | J11: ='Appendix--Fertilizer Costs'!K11 -> 0
A12: ='Appendix--Fertilizer Costs'!A12 -> Dehydrated Poultry Manure (Kreher's 8-2-2) | B12: ='Appendix--Fertilizer Costs'!B12 -> 0.08 | C12: ='Appendix--Fertilizer Costs'!C12 -> 0.02 | D12: ='Appendix--Fertilizer Costs'!D12 -> 0.02 | E12: ='Appendix--Fertilizer Costs'!E12 -> 0 | F12: ='Appendix--Fertilizer Costs'!F12 -> 0 | G12: ='Appendix--Fertilizer Costs'!G12 -> 0 | H12: ='Appendix--Fertilizer Costs'!H12 -> med | I12: ='Appendix--Fertilizer Costs'!I12 -> 28.75 | J12: ='Appendix--Fertilizer Costs'!K12 -> 28.75
A13: ='Appendix--Fertilizer Costs'!A19 -> Grioux's Composted Poultry Manure | B13: ='Appendix--Fertilizer Costs'!B19 -> 0.02 | C13: ='Appendix--Fertilizer Costs'!C19 -> 0.03 | D13: ='Appendix--Fertilizer Costs'!D19 -> 0.015 | E13: ='Appendix--Fertilizer Costs'!E19 -> 0.07 | F13: ='Appendix--Fertilizer Costs'!F19 -> 0.01 | G13: ='Appendix--Fertilizer Costs'!G19 -> 0.05 | H13: ='Appendix--Fertilizer Costs'!H19 -> med | I13: ='Appendix--Fertilizer Costs'!I19 -> 1 | J13: ='Appendix--Fertilizer Costs'!K19 -> 0.6666666667
A14: ='Appendix--Fertilizer Costs'!A20 -> Giroux's pellets | B14: ='Appendix--Fertilizer Costs'!B20 -> 0.04 | C14: ='Appendix--Fertilizer Costs'!C20 -> 0.03 | D14: ='Appendix--Fertilizer Costs'!D20 -> 0.02 | E14: ='Appendix--Fertilizer Costs'!E20 -> 0 | F14: ='Appendix--Fertilizer Costs'!F20 -> 0 | G14: ='Appendix--Fertilizer Costs'!G20 -> 0 | H14: ='Appendix--Fertilizer Costs'!H20 -> med | I14: ='Appendix--Fertilizer Costs'!I20 -> 8.3 | J14: ='Appendix--Fertilizer Costs'!K20 -> 5.533333333
A15: ='Appendix--Fertilizer Costs'!A30 -> Naturesafe | B15: ='Appendix--Fertilizer Costs'!B30 -> 0.1 | C15: ='Appendix--Fertilizer Costs'!C30 -> 0.02 | D15: ='Appendix--Fertilizer Costs'!D30 -> 0.08 | E15: ='Appendix--Fertilizer Costs'!E30 -> 0 | F15: ='Appendix--Fertilizer Costs'!F30 -> 0 | G15: ='Appendix--Fertilizer Costs'!G30 -> 0 | H15: ='Appendix--Fertilizer Costs'!H30 -> 0 | I15: ='Appendix--Fertilizer Costs'!I30 -> 36.25 | J15: ='Appendix--Fertilizer Costs'!K30 -> 0
A16: ='Appendix--Fertilizer Costs'!A33 -> Potassium chloride | B16: ='Appendix--Fertilizer Costs'!B33 -> 0 | C16: ='Appendix--Fertilizer Costs'!C33 -> 0 | D16: ='Appendix--Fertilizer Costs'!D33 -> 0.6 | E16: ='Appendix--Fertilizer Costs'!E33 -> 0 | F16: ='Appendix--Fertilizer Costs'!F33 -> 0 | G16: ='Appendix--Fertilizer Costs'!G33 -> 0 | H16: ='Appendix--Fertilizer Costs'!H33 -> rapid | I16: ='Appendix--Fertilizer Costs'!I33 -> 18.5 | J16: ='Appendix--Fertilizer Costs'!K33 -> 0
A17: ='Appendix--Fertilizer Costs'!A36 -> Solubor
A18: ='Appendix--Fertilizer Costs'!A37 -> Soybean meal | B18: ='Appendix--Fertilizer Costs'!B37 -> 0.07 | C18: ='Appendix--Fertilizer Costs'!C37 -> 0.01 | D18: ='Appendix--Fertilizer Costs'!D37 -> 0.02 | E18: ='Appendix--Fertilizer Costs'!E37 -> 0 | F18: ='Appendix--Fertilizer Costs'!F37 -> 0.03 | G18: ='Appendix--Fertilizer Costs'!G37 -> 0 | H18: ='Appendix--Fertilizer Costs'!H37 -> slow/ med | I18: ='Appendix--Fertilizer Costs'!I37 -> 17 | J18: ='Appendix--Fertilizer Costs'!K37 -> 34
A19: ='Appendix--Fertilizer Costs'!A38 -> Soybean meal, OG | B19: ='Appendix--Fertilizer Costs'!B38 -> 0.07 | C19: ='Appendix--Fertilizer Costs'!C38 -> 0.01 | D19: ='Appendix--Fertilizer Costs'!D38 -> 0.02 | E19: ='Appendix--Fertilizer Costs'!E38 -> 0 | F19: ='Appendix--Fertilizer Costs'!F38 -> 0 | G19: ='Appendix--Fertilizer Costs'!G38 -> 0 | H19: ='Appendix--Fertilizer Costs'!H38 -> slow/ med | I19: ='Appendix--Fertilizer Costs'!I38 -> 43.6 | J19: ='Appendix--Fertilizer Costs'!K38 -> 87.2
A20: ='Appendix--Fertilizer Costs'!A40 -> SOP soluble | B20: ='Appendix--Fertilizer Costs'!B40 -> 0 | C20: ='Appendix--Fertilizer Costs'!C40 -> 0 | D20: ='Appendix--Fertilizer Costs'!D40 -> 0.52 | E20: ='Appendix--Fertilizer Costs'!E40 -> 0 | F20: ='Appendix--Fertilizer Costs'!F40 -> 0 | G20: ='Appendix--Fertilizer Costs'!G40 -> 0 | H20: ='Appendix--Fertilizer Costs'!H40 -> 0 | I20: ='Appendix--Fertilizer Costs'!I40 -> 54.3 | J20: ='Appendix--Fertilizer Costs'!K40 -> 0
A21: ='Appendix--Fertilizer Costs'!A42 -> Urea | B21: ='Appendix--Fertilizer Costs'!B42 -> 0.46 | C21: ='Appendix--Fertilizer Costs'!C42 -> 0 | D21: ='Appendix--Fertilizer Costs'!D42 -> 0 | E21: ='Appendix--Fertilizer Costs'!E42 -> 0 | F21: ='Appendix--Fertilizer Costs'!F42 -> 0 | G21: ='Appendix--Fertilizer Costs'!G42 -> 0 | H21: ='Appendix--Fertilizer Costs'!H42 -> rapid | I21: ='Appendix--Fertilizer Costs'!I42 -> 18.75 | J21: ='Appendix--Fertilizer Costs'!K42 -> 0
A22: NONE NEEDED | B22: 0 | C22: 0 | D22: 0 | E22: 0 | F22: 0 | G22: 0 | I22: 0 | J22: 0
A23: OTHER--enter Name in this cell, analysis and price to right--> | J23: =I23*2/(C23*100) -> 
A29: Blue shading indicates an organic material, but check with your certifying agency before using.

Sheet P lookup (hidden)
A1: ='STEP 5--Choose P'!A7 -> MATERIAL | B1: ='STEP 5--Choose P'!B7 -> % N | C1: ='STEP 5--Choose P'!C7 -> % P2O5 | D1: ='STEP 5--Choose P'!D7 -> % K20 | E1: ='STEP 5--Choose P'!E7 -> % Ca | F1: ='STEP 5--Choose P'!F7 -> % Mg | G1: ='STEP 5--Choose P'!G7 -> % S | H1: ='STEP 5--Choose P'!H7 -> Release Rate | I1: ='STEP 5--Choose P'!I7 -> Price per 50 lb | J1: ='STEP 5--Choose P'!J7 -> $/lb P | K1: Pounds of P205 fertilizer per acre (accounts for any P205 in your N fertilizer selection) | L1: K20 Contributions (pounds) | M1: PoundsCa | N1: Pounds Mg | O1: Pounds S | P1: Estimated Cost
A2: ='STEP 5--Choose P'!A8 -> Bone meal, OG | C2: 0.16 | H2: med | I2: ='STEP 5--Choose P'!I8 -> 71 | J2: =I2*2/(C2*100) -> 8.875 | K2: =('STEP 3--Nutrient Needs'!D11/C2)-(VLOOKUP('STEP 4--Choose N'!D2,'N lookup'!A2:Q47,12,FALSE)/C2) ->  | L2: =K2*D2 ->  | P2: =(K2*I2)/50 -> 
A3: ='STEP 5--Choose P'!A9 -> Bone char | B3: 0.03 | C3: 0.22 | H3: med | I3: ='STEP 5--Choose P'!I9 -> 47.2 | J3: =78/22 -> 3.545454545 | K3: =('STEP 3--Nutrient Needs'!D11/C3)-VLOOKUP('STEP 4--Choose N'!D2,'N lookup'!A2:Q47,12,FALSE)/C3 ->  | L3: =K3*D3 -> 
A4: ='STEP 5--Choose P'!A10 -> Dehydrated Poultry Manure (Kreher's 4-3-10) | B4: ='STEP 5--Choose P'!B10 -> 0.04 | C4: ='STEP 5--Choose P'!C10 -> 0.03 | D4: ='STEP 5--Choose P'!D10 -> 0.1 | E4: ='STEP 5--Choose P'!E10 -> 0 | F4: ='STEP 5--Choose P'!F10 -> 0 | G4: ='STEP 5--Choose P'!G10 -> 0 | H4: ='STEP 5--Choose P'!H10 -> med | I4: ='STEP 5--Choose P'!I10 -> 22.5 | J4: ='STEP 5--Choose P'!J10 -> 15 | K4: =('STEP 3--Nutrient Needs'!D11/C4)-VLOOKUP('STEP 4--Choose N'!D2,'N lookup'!A2:Q47,12,FALSE)/C4 -> 
A5: ='STEP 5--Choose P'!A11 -> Dehydrated Poultry Manure (Kreher's 7-2-6) | B5: ='STEP 5--Choose P'!B11 -> 0.07 | C5: ='STEP 5--Choose P'!C11 -> 0.02 | D5: ='STEP 5--Choose P'!D11 -> 0.06 | E5: ='STEP 5--Choose P'!E11 -> 0 | F5: ='STEP 5--Choose P'!F11 -> 0 | G5: ='STEP 5--Choose P'!G11 -> 0 | H5: ='STEP 5--Choose P'!H11 -> med | I5: ='STEP 5--Choose P'!I11 -> 28.75 | J5: ='STEP 5--Choose P'!J11 -> 0 | K5: =('STEP 3--Nutrient Needs'!D11/C5)-VLOOKUP('STEP 4--Choose N'!D2,'N lookup'!A2:Q47,12,FALSE)/C5 -> 
A6: ='STEP 5--Choose P'!A12 -> Dehydrated Poultry Manure (Kreher's 8-2-2) | B6: ='STEP 5--Choose P'!B12 -> 0.08 | C6: ='STEP 5--Choose P'!C12 -> 0.02 | D6: ='STEP 5--Choose P'!D12 -> 0.02 | E6: ='STEP 5--Choose P'!E12 -> 0 | F6: ='STEP 5--Choose P'!F12 -> 0 | G6: ='STEP 5--Choose P'!G12 -> 0 | H6: ='STEP 5--Choose P'!H12 -> med | I6: ='STEP 5--Choose P'!I12 -> 28.75 | J6: ='STEP 5--Choose P'!J12 -> 28.75 | K6: =('STEP 3--Nutrient Needs'!D11/C6)-VLOOKUP('STEP 4--Choose N'!D2,'N lookup'!A2:Q47,12,FALSE)/C6 -> 
A7: ='STEP 5--Choose P'!A13 -> Grioux's Composted Poultry Manure | B7: ='STEP 5--Choose P'!B13 -> 0.02 | C7: ='STEP 5--Choose P'!C13 -> 0.03 | D7: ='STEP 5--Choose P'!D13 -> 0.015 | E7: ='STEP 5--Choose P'!E13 -> 0.07 | F7: ='STEP 5--Choose P'!F13 -> 0.01 | G7: ='STEP 5--Choose P'!G13 -> 0.05 | H7: ='STEP 5--Choose P'!H13 -> med | I7: ='STEP 5--Choose P'!I13 -> 1 | J7: ='STEP 5--Choose P'!J13 -> 0.6666666667 | K7: =('STEP 3--Nutrient Needs'!D11/C7)-VLOOKUP('STEP 4--Choose N'!D2,'N lookup'!A2:Q47,12,FALSE)/C7 -> 
A8: ='STEP 5--Choose P'!A15 -> Naturesafe | B8: ='STEP 5--Choose P'!B15 -> 0.1 | C8: ='STEP 5--Choose P'!C15 -> 0.02 | D8: ='STEP 5--Choose P'!D15 -> 0.08 | E8: ='STEP 5--Choose P'!E15 -> 0 | F8: ='STEP 5--Choose P'!F15 -> 0 | G8: ='STEP 5--Choose P'!G15 -> 0 | H8: ='STEP 5--Choose P'!H15 -> 0 | I8: ='STEP 5--Choose P'!I15 -> 36.25 | J8: ='STEP 5--Choose P'!J15 -> 0 | K8: =('STEP 3--Nutrient Needs'!D11/C8)-VLOOKUP('STEP 4--Choose N'!D2,'N lookup'!A2:Q47,12,FALSE)/C8 -> 
A9: ='STEP 5--Choose P'!A16 -> Potassium chloride | B9: ='STEP 5--Choose P'!B16 -> 0 | C9: ='STEP 5--Choose P'!C16 -> 0 | D9: ='STEP 5--Choose P'!D16 -> 0.6 | E9: ='STEP 5--Choose P'!E16 -> 0 | F9: ='STEP 5--Choose P'!F16 -> 0 | G9: ='STEP 5--Choose P'!G16 -> 0 | H9: ='STEP 5--Choose P'!H16 -> rapid | I9: ='STEP 5--Choose P'!I16 -> 18.5 | J9: ='STEP 5--Choose P'!J16 -> 0 | K9: =('STEP 3--Nutrient Needs'!D11/C9)-VLOOKUP('STEP 4--Choose N'!D2,'N lookup'!A2:Q47,12,FALSE)/C9 -> 
A10: ='STEP 5--Choose P'!A17 -> Solubor | L10: 0 | P10: 0
A11: ='STEP 5--Choose P'!A18 -> Soybean meal | B11: ='STEP 5--Choose P'!B18 -> 0.07 | C11: ='STEP 5--Choose P'!C18 -> 0.01 | D11: ='STEP 5--Choose P'!D18 -> 0.02 | E11: ='STEP 5--Choose P'!E18 -> 0 | F11: ='STEP 5--Choose P'!F18 -> 0.03 | G11: ='STEP 5--Choose P'!G18 -> 0 | H11: ='STEP 5--Choose P'!H18 -> slow/ med | I11: ='STEP 5--Choose P'!I18 -> 17 | J11: ='STEP 5--Choose P'!J18 -> 34 | K11: =('STEP 3--Nutrient Needs'!D11/C11)-VLOOKUP('STEP 4--Choose N'!D2,'N lookup'!A2:Q47,12,FALSE)/C11 -> 
A12: ='STEP 5--Choose P'!A19 -> Soybean meal, OG | B12: ='STEP 5--Choose P'!B19 -> 0.07 | C12: ='STEP 5--Choose P'!C19 -> 0.01 | D12: ='STEP 5--Choose P'!D19 -> 0.02 | E12: ='STEP 5--Choose P'!E19 -> 0 | F12: ='STEP 5--Choose P'!F19 -> 0 | G12: ='STEP 5--Choose P'!G19 -> 0 | H12: ='STEP 5--Choose P'!H19 -> slow/ med | I12: ='STEP 5--Choose P'!I19 -> 43.6 | J12: ='STEP 5--Choose P'!J19 -> 87.2 | K12: =('STEP 3--Nutrient Needs'!D11/C12)-VLOOKUP('STEP 4--Choose N'!D2,'N lookup'!A2:Q47,12,FALSE)/C12 ->  | M12: =K12*E12 ->  | N12: =K12*F12 ->  | O12: =K12*G12 -> 
A13: ='STEP 5--Choose P'!A20 -> SOP soluble | B13: ='STEP 5--Choose P'!B20 -> 0 | C13: ='STEP 5--Choose P'!C20 -> 0 | D13: ='STEP 5--Choose P'!D20 -> 0.52 | E13: ='STEP 5--Choose P'!E20 -> 0 | F13: ='STEP 5--Choose P'!F20 -> 0 | G13: ='STEP 5--Choose P'!G20 -> 0 | H13: ='STEP 5--Choose P'!H20 -> 0 | I13: ='STEP 5--Choose P'!I20 -> 54.3 | J13: ='STEP 5--Choose P'!J20 -> 0 | K13: =('STEP 3--Nutrient Needs'!D11/C13)-VLOOKUP('STEP 4--Choose N'!D2,'N lookup'!A2:Q47,12,FALSE)/C13 ->  | M13: =K13*E13 ->  | O13: =G13*K13 -> 
A14: ='STEP 5--Choose P'!A21 -> Urea | B14: ='STEP 5--Choose P'!B21 -> 0.46 | C14: ='STEP 5--Choose P'!C21 -> 0 | D14: ='STEP 5--Choose P'!D21 -> 0 | E14: ='STEP 5--Choose P'!E21 -> 0 | F14: ='STEP 5--Choose P'!F21 -> 0 | G14: ='STEP 5--Choose P'!G21 -> 0 | H14: ='STEP 5--Choose P'!H21 -> rapid | I14: ='STEP 5--Choose P'!I21 -> 18.75 | J14: ='STEP 5--Choose P'!J21 -> 0 | K14: =('STEP 3--Nutrient Needs'!D11/C14)-VLOOKUP('STEP 4--Choose N'!D2,'N lookup'!A2:Q47,12,FALSE)/C14 -> 
A15: ='STEP 5--Choose P'!A22 -> NONE NEEDED | B15: ='STEP 5--Choose P'!B22 -> 0 | C15: ='STEP 5--Choose P'!C22 -> 0 | D15: ='STEP 5--Choose P'!D22 -> 0 | E15: ='STEP 5--Choose P'!E22 -> 0 | F15: ='STEP 5--Choose P'!F22 -> 0 | G15: ='STEP 5--Choose P'!G22 -> 0 | H15: ='STEP 5--Choose P'!H22 -> 0 | I15: ='STEP 5--Choose P'!I22 -> 0 | J15: ='STEP 5--Choose P'!J22 -> 0 | K15: 0 | L15: 0 | M15: 0 | N15: 0 | O15: 0 | P15: 0
A16: ='STEP 5--Choose P'!A23 -> OTHER--enter Name in this cell, analysis and price to right--> | B16: ='STEP 5--Choose P'!B23 -> 0 | C16: ='STEP 5--Choose P'!C23 -> 0 | D16: ='STEP 5--Choose P'!D23 -> 0 | E16: ='STEP 5--Choose P'!E23 -> 0 | F16: ='STEP 5--Choose P'!F23 -> 0 | G16: ='STEP 5--Choose P'!G23 -> 0 | H16: ='STEP 5--Choose P'!H23 -> 0 | I16: ='STEP 5--Choose P'!I23 -> 0 | J16: ='STEP 5--Choose P'!J23 ->  | K16: =('STEP 3--Nutrient Needs'!D11/C16)-VLOOKUP('STEP 4--Choose N'!D2,'N lookup'!A2:Q47,12,FALSE)/C16 -> 
P17: 0

Sheet STEP 6--Choose K
A1: Instructions: Select your potash amendments from the drop down menu in the yellow cell after reviewing the chart below.
A2: Select Your Potash Amendments ---> | E2: Sulfate of potash
A3: Your N and P205 selections contribute | D3: =VLOOKUP('STEP 4--Choose N'!D2,'N lookup'!A2:Q47,13,FALSE)+VLOOKUP('STEP 5--Choose P'!D2,'P lookup'!A2:L16,12,FALSE) ->  | E3: lbs K20/ acre
A4: You still need to add | D4: =('STEP 3--Nutrient Needs'!E11)-(VLOOKUP('STEP 4--Choose N'!D2,'N lookup'!A2:Q47,13,FALSE)+VLOOKUP('STEP 5--Choose P'!D2,'P lookup'!A2:L16,12,FALSE)) ->  | E4: lbs K20/ acre
A5: POSSIBLE POTASH AMENDMENTS
A6: ='Appendix--Fertilizer Costs'!A1 -> MATERIAL | B6: ='Appendix--Fertilizer Costs'!B1 -> % N | C6: ='Appendix--Fertilizer Costs'!C1 -> % P2O5 | D6: ='Appendix--Fertilizer Costs'!D1 -> % K20 | E6: ='Appendix--Fertilizer Costs'!E1 -> % Ca | F6: ='Appendix--Fertilizer Costs'!F1 -> % Mg | G6: ='Appendix--Fertilizer Costs'!G1 -> % S | H6: ='Appendix--Fertilizer Costs'!H1 -> Release Rate | I6: ='Appendix--Fertilizer Costs'!I1 -> Price per 50 lb | J6: ='Appendix--Fertilizer Costs'!L1 -> $/lb K
A7: ='Appendix--Fertilizer Costs'!A10 -> Dehydrated Poultry Manure (Kreher's 4-3-10) | B7: ='Appendix--Fertilizer Costs'!B10 -> 0.04 | C7: ='Appendix--Fertilizer Costs'!C10 -> 0.03 | D7: ='Appendix--Fertilizer Costs'!D10 -> 0.1 | E7: ='Appendix--Fertilizer Costs'!E10 -> 0 | F7: ='Appendix--Fertilizer Costs'!F10 -> 0 | G7: ='Appendix--Fertilizer Costs'!G10 -> 0 | H7: ='Appendix--Fertilizer Costs'!H10 -> med | I7: ='Appendix--Fertilizer Costs'!I10 -> 22.5 | J7: ='Appendix--Fertilizer Costs'!L10 -> 4.5
A8: ='Appendix--Fertilizer Costs'!A11 -> Dehydrated Poultry Manure (Kreher's 7-2-6) | B8: ='Appendix--Fertilizer Costs'!B11 -> 0.07 | C8: ='Appendix--Fertilizer Costs'!C11 -> 0.02 | D8: ='Appendix--Fertilizer Costs'!D11 -> 0.06 | E8: ='Appendix--Fertilizer Costs'!E11 -> 0 | F8: ='Appendix--Fertilizer Costs'!F11 -> 0 | G8: ='Appendix--Fertilizer Costs'!G11 -> 0 | H8: ='Appendix--Fertilizer Costs'!H11 -> med | I8: ='Appendix--Fertilizer Costs'!I11 -> 28.75 | J8: ='Appendix--Fertilizer Costs'!L11 -> 0
A9: ='Appendix--Fertilizer Costs'!A21 -> Granite dust | B9: ='Appendix--Fertilizer Costs'!B21 -> 0 | C9: ='Appendix--Fertilizer Costs'!C21 -> 0 | D9: ='Appendix--Fertilizer Costs'!D21 -> 0.06 | E9: ='Appendix--Fertilizer Costs'!E21 -> 0 | F9: ='Appendix--Fertilizer Costs'!F21 -> 0.11 | G9: ='Appendix--Fertilizer Costs'!G21 -> 0.22 | H9: ='Appendix--Fertilizer Costs'!H21 -> very slow | I9: ='Appendix--Fertilizer Costs'!I21 -> 89 | J9: ='Appendix--Fertilizer Costs'!L21 -> 29.66666667
A10: ='Appendix--Fertilizer Costs'!A22 -> Greensand | B10: ='Appendix--Fertilizer Costs'!B22 -> 0 | C10: ='Appendix--Fertilizer Costs'!C22 -> 0.01 | D10: ='Appendix--Fertilizer Costs'!D22 -> 0.07 | E10: ='Appendix--Fertilizer Costs'!E22 -> 0 | F10: ='Appendix--Fertilizer Costs'!F22 -> 0 | G10: ='Appendix--Fertilizer Costs'!G22 -> 0 | H10: ='Appendix--Fertilizer Costs'!H22 -> very slow | I10: ='Appendix--Fertilizer Costs'!I22 -> 31.5 | J10: ='Appendix--Fertilizer Costs'!L22 -> 9
A11: ='Appendix--Fertilizer Costs'!A24 -> K-mag | B11: ='Appendix--Fertilizer Costs'!B24 -> 0 | C11: ='Appendix--Fertilizer Costs'!C24 -> 0 | D11: ='Appendix--Fertilizer Costs'!D24 -> 0.22 | E11: ='Appendix--Fertilizer Costs'!E24 -> 0 | F11: ='Appendix--Fertilizer Costs'!F24 -> 0.11 | G11: ='Appendix--Fertilizer Costs'!G24 -> 0.22 | H11: ='Appendix--Fertilizer Costs'!H24 -> rapid | I11: ='Appendix--Fertilizer Costs'!I24 -> 27.65 | J11: ='Appendix--Fertilizer Costs'!L24 -> 2.513636364
A12: ='Appendix--Fertilizer Costs'!A27 -> Makro 60 | B12: ='Appendix--Fertilizer Costs'!B27 -> 0 | C12: ='Appendix--Fertilizer Costs'!C27 -> 0 | D12: ='Appendix--Fertilizer Costs'!D27 -> 0.6 | E12: ='Appendix--Fertilizer Costs'!E27 -> 0 | F12: ='Appendix--Fertilizer Costs'!F27 -> 0 | G12: ='Appendix--Fertilizer Costs'!G27 -> 0 | H12: ='Appendix--Fertilizer Costs'!H27 -> 0 | I12: ='Appendix--Fertilizer Costs'!I27 -> 36.25 | J12: ='Appendix--Fertilizer Costs'!L27 -> 0
A13: ='Appendix--Fertilizer Costs'!A29 -> Naturesafe | B13: ='Appendix--Fertilizer Costs'!B29 -> 0.07 | C13: ='Appendix--Fertilizer Costs'!C29 -> 0.12 | D13: ='Appendix--Fertilizer Costs'!D29 -> 0 | E13: ='Appendix--Fertilizer Costs'!E29 -> 0 | F13: ='Appendix--Fertilizer Costs'!F29 -> 0 | G13: ='Appendix--Fertilizer Costs'!G29 -> 0 | H13: ='Appendix--Fertilizer Costs'!H29 -> 0 | I13: ='Appendix--Fertilizer Costs'!I29 -> 35 | J13: ='Appendix--Fertilizer Costs'!L29 -> 0
A14: ='Appendix--Fertilizer Costs'!A32 -> Peanut meal | B14: ='Appendix--Fertilizer Costs'!B32 -> 0.08 | C14: ='Appendix--Fertilizer Costs'!C32 -> 0.01 | D14: ='Appendix--Fertilizer Costs'!D32 -> 0.02 | E14: ='Appendix--Fertilizer Costs'!E32 -> 0 | F14: ='Appendix--Fertilizer Costs'!F32 -> 0 | G14: ='Appendix--Fertilizer Costs'!G32 -> 0 | H14: ='Appendix--Fertilizer Costs'!H32 -> slow/ med | I14: ='Appendix--Fertilizer Costs'!I32 -> 28 | J14: ='Appendix--Fertilizer Costs'!L32 -> 28
A15: ='Appendix--Fertilizer Costs'!A36 -> Solubor
A16: ='Appendix--Fertilizer Costs'!A37 -> Soybean meal | B16: ='Appendix--Fertilizer Costs'!B37 -> 0.07 | C16: ='Appendix--Fertilizer Costs'!C37 -> 0.01 | D16: ='Appendix--Fertilizer Costs'!D37 -> 0.02 | E16: ='Appendix--Fertilizer Costs'!E37 -> 0 | F16: ='Appendix--Fertilizer Costs'!F37 -> 0.03 | G16: ='Appendix--Fertilizer Costs'!G37 -> 0 | H16: ='Appendix--Fertilizer Costs'!H37 -> slow/ med | I16: ='Appendix--Fertilizer Costs'!I37 -> 17 | J16: ='Appendix--Fertilizer Costs'!L37 -> 17
A17: ='Appendix--Fertilizer Costs'!A38 -> Soybean meal, OG | B17: ='Appendix--Fertilizer Costs'!B38 -> 0.07 | C17: ='Appendix--Fertilizer Costs'!C38 -> 0.01 | D17: ='Appendix--Fertilizer Costs'!D38 -> 0.02 | E17: ='Appendix--Fertilizer Costs'!E38 -> 0 | F17: ='Appendix--Fertilizer Costs'!F38 -> 0 | G17: ='Appendix--Fertilizer Costs'!G38 -> 0 | H17: ='Appendix--Fertilizer Costs'!H38 -> slow/ med | I17: ='Appendix--Fertilizer Costs'!I38 -> 43.6 | J17: ='Appendix--Fertilizer Costs'!L38 -> 43.6
A18: ='Appendix--Fertilizer Costs'!A39 -> Sulfate of potash | B18: ='Appendix--Fertilizer Costs'!B39 -> 0 | C18: ='Appendix--Fertilizer Costs'!C39 -> 0 | D18: ='Appendix--Fertilizer Costs'!D39 -> 0.5 | E18: ='Appendix--Fertilizer Costs'!E39 -> 0 | F18: ='Appendix--Fertilizer Costs'!F39 -> 0 | G18: ='Appendix--Fertilizer Costs'!G39 -> 0.17 | H18: ='Appendix--Fertilizer Costs'!H39 -> rapid | I18: ='Appendix--Fertilizer Costs'!I39 -> 34.14 | J18: ='Appendix--Fertilizer Costs'!L39 -> 1.3656
A19: ='Appendix--Fertilizer Costs'!A40 -> SOP soluble | B19: ='Appendix--Fertilizer Costs'!B40 -> 0 | C19: ='Appendix--Fertilizer Costs'!C40 -> 0 | D19: ='Appendix--Fertilizer Costs'!D40 -> 0.52 | E19: ='Appendix--Fertilizer Costs'!E40 -> 0 | F19: ='Appendix--Fertilizer Costs'!F40 -> 0 | G19: ='Appendix--Fertilizer Costs'!G40 -> 0 | H19: ='Appendix--Fertilizer Costs'!H40 -> 0 | I19: ='Appendix--Fertilizer Costs'!I40 -> 54.3 | J19: ='Appendix--Fertilizer Costs'!L40 -> 0
A20: ='Appendix--Fertilizer Costs'!A42 -> Urea | B20: ='Appendix--Fertilizer Costs'!B42 -> 0.46 | C20: ='Appendix--Fertilizer Costs'!C42 -> 0 | D20: ='Appendix--Fertilizer Costs'!D42 -> 0 | E20: ='Appendix--Fertilizer Costs'!E42 -> 0 | F20: ='Appendix--Fertilizer Costs'!F42 -> 0 | G20: ='Appendix--Fertilizer Costs'!G42 -> 0 | H20: ='Appendix--Fertilizer Costs'!H42 -> rapid | I20: ='Appendix--Fertilizer Costs'!I42 -> 18.75 | J20: ='Appendix--Fertilizer Costs'!L42 -> 0
A21: NONE NEEDED | B21: 0 | C21: 0 | D21: 0 | I21: 0
A22: OTHER--enter Name in this cell, analysis and price to right--> | J22: =I22/D22/50 -> 
A24: Blue shading indicates an organic material, but check with your certifying agency before using.

Sheet K lookup (hidden)
A1: ='STEP 6--Choose K'!A6 -> MATERIAL | B1: ='STEP 6--Choose K'!B6 -> % N | C1: ='STEP 6--Choose K'!C6 -> % P2O5 | D1: ='STEP 6--Choose K'!D6 -> % K20 | E1: ='STEP 6--Choose K'!E6 -> % Ca | F1: ='STEP 6--Choose K'!F6 -> % Mg | G1: ='STEP 6--Choose K'!G6 -> % S | H1: ='STEP 6--Choose K'!H6 -> Release Rate | I1: ='STEP 6--Choose K'!I6 -> Price per 50 lb | J1: ='STEP 6--Choose K'!J6 -> $/lb K | K1: Pounds of K20 fertilizer per acre (accounts for any K20 in your N&P fertilizer selection) | L1: PoundsCa | M1: Pounds Mg | N1: Pounds S | O1: Estimated Cost
A2: ='STEP 6--Choose K'!A7 -> Dehydrated Poultry Manure (Kreher's 4-3-10) | B2: ='STEP 6--Choose K'!B7 -> 0.04 | C2: ='STEP 6--Choose K'!C7 -> 0.03 | D2: ='STEP 6--Choose K'!D7 -> 0.1 | E2: ='STEP 6--Choose K'!E7 -> 0 | F2: ='STEP 6--Choose K'!F7 -> 0 | G2: ='STEP 6--Choose K'!G7 -> 0 | H2: ='STEP 6--Choose K'!H7 -> med | I2: ='STEP 6--Choose K'!I7 -> 22.5 | J2: ='STEP 6--Choose K'!J7 -> 4.5 | K2: =('STEP 3--Nutrient Needs'!E11/D2)-((VLOOKUP('STEP 4--Choose N'!D2,'N lookup'!A2:Q47,13,FALSE)+VLOOKUP('STEP 5--Choose P'!D2,'P lookup'!A2:L16,12,FALSE))/D2) ->  | L2: =K2*E2 ->  | M2: =K2*F2 ->  | N2: =K2*G2 ->  | O2: =K2/50*I2 -> 
A3: ='STEP 6--Choose K'!A8 -> Dehydrated Poultry Manure (Kreher's 7-2-6) | B3: ='STEP 6--Choose K'!B8 -> 0.07 | C3: ='STEP 6--Choose K'!C8 -> 0.02 | D3: ='STEP 6--Choose K'!D8 -> 0.06 | E3: ='STEP 6--Choose K'!E8 -> 0 | F3: ='STEP 6--Choose K'!F8 -> 0 | G3: ='STEP 6--Choose K'!G8 -> 0 | H3: ='STEP 6--Choose K'!H8 -> med | I3: ='STEP 6--Choose K'!I8 -> 28.75 | J3: ='STEP 6--Choose K'!J8 -> 0 | K3: =('STEP 3--Nutrient Needs'!E11/D3)-((VLOOKUP('STEP 4--Choose N'!D2,'N lookup'!A2:Q47,13,FALSE)+VLOOKUP('STEP 5--Choose P'!D2,'P lookup'!A2:L16,12,FALSE))/D3) -> 
A4: ='STEP 6--Choose K'!A9 -> Granite dust | B4: ='STEP 6--Choose K'!B9 -> 0 | C4: ='STEP 6--Choose K'!C9 -> 0 | D4: ='STEP 6--Choose K'!D9 -> 0.06 | E4: ='STEP 6--Choose K'!E9 -> 0 | F4: ='STEP 6--Choose K'!F9 -> 0.11 | G4: ='STEP 6--Choose K'!G9 -> 0.22 | H4: ='STEP 6--Choose K'!H9 -> very slow | I4: ='STEP 6--Choose K'!I9 -> 89 | J4: ='STEP 6--Choose K'!J9 -> 29.66666667 | K4: =('STEP 3--Nutrient Needs'!E11/D4)-((VLOOKUP('STEP 4--Choose N'!D2,'N lookup'!A2:Q47,13,FALSE)+VLOOKUP('STEP 5--Choose P'!D2,'P lookup'!A2:L16,12,FALSE))/D4) -> 
A5: ='STEP 6--Choose K'!A10 -> Greensand | B5: ='STEP 6--Choose K'!B10 -> 0 | C5: ='STEP 6--Choose K'!C10 -> 0.01 | D5: ='STEP 6--Choose K'!D10 -> 0.07 | E5: ='STEP 6--Choose K'!E10 -> 0 | F5: ='STEP 6--Choose K'!F10 -> 0 | G5: ='STEP 6--Choose K'!G10 -> 0 | H5: ='STEP 6--Choose K'!H10 -> very slow | I5: ='STEP 6--Choose K'!I10 -> 31.5 | J5: ='STEP 6--Choose K'!J10 -> 9 | K5: =('STEP 3--Nutrient Needs'!E11/D5)-((VLOOKUP('STEP 4--Choose N'!D2,'N lookup'!A2:Q47,13,FALSE)+VLOOKUP('STEP 5--Choose P'!D2,'P lookup'!A2:L16,12,FALSE))/D5) -> 
A6: ='STEP 6--Choose K'!A11 -> K-mag | B6: ='STEP 6--Choose K'!B11 -> 0 | C6: ='STEP 6--Choose K'!C11 -> 0 | D6: ='STEP 6--Choose K'!D11 -> 0.22 | E6: ='STEP 6--Choose K'!E11 -> 0 | F6: ='STEP 6--Choose K'!F11 -> 0.11 | G6: ='STEP 6--Choose K'!G11 -> 0.22 | H6: ='STEP 6--Choose K'!H11 -> rapid | I6: ='STEP 6--Choose K'!I11 -> 27.65 | J6: ='STEP 6--Choose K'!J11 -> 2.513636364 | K6: =('STEP 3--Nutrient Needs'!E11/D6)-((VLOOKUP('STEP 4--Choose N'!D2,'N lookup'!A2:Q47,13,FALSE)+VLOOKUP('STEP 5--Choose P'!D2,'P lookup'!A2:L16,12,FALSE))/D6) -> 
A7: ='STEP 6--Choose K'!A12 -> Makro 60 | B7: ='STEP 6--Choose K'!B12 -> 0 | C7: ='STEP 6--Choose K'!C12 -> 0 | D7: ='STEP 6--Choose K'!D12 -> 0.6 | E7: ='STEP 6--Choose K'!E12 -> 0 | F7: ='STEP 6--Choose K'!F12 -> 0 | G7: ='STEP 6--Choose K'!G12 -> 0 | H7: ='STEP 6--Choose K'!H12 -> 0 | I7: ='STEP 6--Choose K'!I12 -> 36.25 | J7: ='STEP 6--Choose K'!J12 -> 0 | K7: =('STEP 3--Nutrient Needs'!E11/D7)-((VLOOKUP('STEP 4--Choose N'!D2,'N lookup'!A2:Q47,13,FALSE)+VLOOKUP('STEP 5--Choose P'!D2,'P lookup'!A2:L16,12,FALSE))/D7) -> 
A8: ='STEP 6--Choose K'!A13 -> Naturesafe | B8: ='STEP 6--Choose K'!B13 -> 0.07 | C8: ='STEP 6--Choose K'!C13 -> 0.12 | D8: ='STEP 6--Choose K'!D13 -> 0 | E8: ='STEP 6--Choose K'!E13 -> 0 | F8: ='STEP 6--Choose K'!F13 -> 0 | G8: ='STEP 6--Choose K'!G13 -> 0 | H8: ='STEP 6--Choose K'!H13 -> 0 | I8: ='STEP 6--Choose K'!I13 -> 35 | J8: ='STEP 6--Choose K'!J13 -> 0 | K8: =('STEP 3--Nutrient Needs'!E11/D8)-((VLOOKUP('STEP 4--Choose N'!D2,'N lookup'!A2:Q47,13,FALSE)+VLOOKUP('STEP 5--Choose P'!D2,'P lookup'!A2:L16,12,FALSE))/D8) -> 
A9: ='STEP 6--Choose K'!A14 -> Peanut meal | B9: ='STEP 6--Choose K'!B14 -> 0.08 | C9: ='STEP 6--Choose K'!C14 -> 0.01 | D9: ='STEP 6--Choose K'!D14 -> 0.02 | E9: ='STEP 6--Choose K'!E14 -> 0 | F9: ='STEP 6--Choose K'!F14 -> 0 | G9: ='STEP 6--Choose K'!G14 -> 0 | H9: ='STEP 6--Choose K'!H14 -> slow/ med | I9: ='STEP 6--Choose K'!I14 -> 28 | J9: ='STEP 6--Choose K'!J14 -> 28 | K9: =('STEP 3--Nutrient Needs'!E11/D9)-((VLOOKUP('STEP 4--Choose N'!D2,'N lookup'!A2:Q47,13,FALSE)+VLOOKUP('STEP 5--Choose P'!D2,'P lookup'!A2:L16,12,FALSE))/D9) -> 
A10: ='STEP 6--Choose K'!A15 -> Solubor
A11: ='STEP 6--Choose K'!A16 -> Soybean meal | B11: ='STEP 6--Choose K'!B16 -> 0.07 | C11: ='STEP 6--Choose K'!C16 -> 0.01 | D11: ='STEP 6--Choose K'!D16 -> 0.02 | E11: ='STEP 6--Choose K'!E16 -> 0 | F11: ='STEP 6--Choose K'!F16 -> 0.03 | G11: ='STEP 6--Choose K'!G16 -> 0 | H11: ='STEP 6--Choose K'!H16 -> slow/ med | I11: ='STEP 6--Choose K'!I16 -> 17 | J11: ='STEP 6--Choose K'!J16 -> 17 | K11: =('STEP 3--Nutrient Needs'!E11/D11)-((VLOOKUP('STEP 4--Choose N'!D2,'N lookup'!A2:Q47,13,FALSE)+VLOOKUP('STEP 5--Choose P'!D2,'P lookup'!A2:L16,12,FALSE))/D11) ->  | L11: =K11*E11 ->  | M11: =K11*F11 ->  | N11: =K11*G11 ->  | O11: =K11/50*I11 -> 
A12: ='STEP 6--Choose K'!A17 -> Soybean meal, OG | B12: ='STEP 6--Choose K'!B17 -> 0.07 | C12: ='STEP 6--Choose K'!C17 -> 0.01 | D12: ='STEP 6--Choose K'!D17 -> 0.02 | E12: ='STEP 6--Choose K'!E17 -> 0 | F12: ='STEP 6--Choose K'!F17 -> 0 | G12: ='STEP 6--Choose K'!G17 -> 0 | H12: ='STEP 6--Choose K'!H17 -> slow/ med | I12: ='STEP 6--Choose K'!I17 -> 43.6 | J12: ='STEP 6--Choose K'!J17 -> 43.6 | K12: =('STEP 3--Nutrient Needs'!E11/D12)-((VLOOKUP('STEP 4--Choose N'!D2,'N lookup'!A2:Q47,13,FALSE)+VLOOKUP('STEP 5--Choose P'!D2,'P lookup'!A2:L16,12,FALSE))/D12) ->  | L12: =K12*E12 ->  | M12: =K12*F12 ->  | N12: =K12*G12 -> 
A13: ='STEP 6--Choose K'!A18 -> Sulfate of potash | B13: ='STEP 6--Choose K'!B18 -> 0 | C13: ='STEP 6--Choose K'!C18 -> 0 | D13: ='STEP 6--Choose K'!D18 -> 0.5 | E13: ='STEP 6--Choose K'!E18 -> 0 | F13: ='STEP 6--Choose K'!F18 -> 0 | G13: ='STEP 6--Choose K'!G18 -> 0.17 | H13: ='STEP 6--Choose K'!H18 -> rapid | I13: ='STEP 6--Choose K'!I18 -> 34.14 | J13: ='STEP 6--Choose K'!J18 -> 1.3656 | K13: =('STEP 3--Nutrient Needs'!E11/D13)-((VLOOKUP('STEP 4--Choose N'!D2,'N lookup'!A2:Q47,13,FALSE)+VLOOKUP('STEP 5--Choose P'!D2,'P lookup'!A2:L16,12,FALSE))/D13) ->  | L13: =K13*E13 ->  | M13: =K13*F13 ->  | N13: =K13*G13 -> 
A14: ='STEP 6--Choose K'!A19 -> SOP soluble | B14: ='STEP 6--Choose K'!B19 -> 0 | C14: ='STEP 6--Choose K'!C19 -> 0 | D14: ='STEP 6--Choose K'!D19 -> 0.52 | E14: ='STEP 6--Choose K'!E19 -> 0 | F14: ='STEP 6--Choose K'!F19 -> 0 | G14: ='STEP 6--Choose K'!G19 -> 0 | H14: ='STEP 6--Choose K'!H19 -> 0 | I14: ='STEP 6--Choose K'!I19 -> 54.3 | J14: ='STEP 6--Choose K'!J19 -> 0 | K14: =('STEP 3--Nutrient Needs'!E11/D14)-((VLOOKUP('STEP 4--Choose N'!D2,'N lookup'!A2:Q47,13,FALSE)+VLOOKUP('STEP 5--Choose P'!D2,'P lookup'!A2:L16,12,FALSE))/D14) ->  | L14: =K14*E14 ->  | M14: =K14*F14 ->  | N14: =K14*G14 -> 
A15: ='STEP 6--Choose K'!A20 -> Urea | B15: ='STEP 6--Choose K'!B20 -> 0.46 | C15: ='STEP 6--Choose K'!C20 -> 0 | D15: ='STEP 6--Choose K'!D20 -> 0 | E15: ='STEP 6--Choose K'!E20 -> 0 | F15: ='STEP 6--Choose K'!F20 -> 0 | G15: ='STEP 6--Choose K'!G20 -> 0 | H15: ='STEP 6--Choose K'!H20 -> rapid | I15: ='STEP 6--Choose K'!I20 -> 18.75 | J15: ='STEP 6--Choose K'!J20 -> 0 | K15: =('STEP 3--Nutrient Needs'!E11/D15)-((VLOOKUP('STEP 4--Choose N'!D2,'N lookup'!A2:Q47,13,FALSE)+VLOOKUP('STEP 5--Choose P'!D2,'P lookup'!A2:L16,12,FALSE))/D15) ->  | L15: =K15*E15 ->  | M15: =K15*F15 ->  | N15: =K15*G15 -> 
A16: ='STEP 6--Choose K'!A21 -> NONE NEEDED | B16: ='STEP 6--Choose K'!B21 -> 0 | C16: ='STEP 6--Choose K'!C21 -> 0 | D16: ='STEP 6--Choose K'!D21 -> 0 | E16: ='STEP 6--Choose K'!E21 -> 0 | F16: ='STEP 6--Choose K'!F21 -> 0 | G16: ='STEP 6--Choose K'!G21 -> 0 | H16: ='STEP 6--Choose K'!H21 -> 0 | I16: ='STEP 6--Choose K'!I21 -> 0 | J16: ='STEP 6--Choose K'!J21 -> 0 | K16: 0 | L16: 0 | M16: 0 | N16: 0 | O16: 0
A17: ='STEP 6--Choose K'!A22 -> OTHER--enter Name in this cell, analysis and price to right--> | B17: ='STEP 6--Choose K'!B22 -> 0 | C17: ='STEP 6--Choose K'!C22 -> 0 | D17: ='STEP 6--Choose K'!D22 -> 0 | E17: ='STEP 6--Choose K'!E22 -> 0 | F17: ='STEP 6--Choose K'!F22 -> 0 | G17: ='STEP 6--Choose K'!G22 -> 0 | H17: ='STEP 6--Choose K'!H22 -> 0 | I17: ='STEP 6--Choose K'!I22 -> 0 | J17: ='STEP 6--Choose K'!J22 ->  | K17: =('STEP 3--Nutrient Needs'!E11/D16)-((VLOOKUP('STEP 4--Choose N'!D2,'N lookup'!A2:Q47,13,FALSE)+VLOOKUP('STEP 5--Choose P'!D2,'P lookup'!A2:L16,12,FALSE))/D17) ->  | L17: =K17*E17 ->  | M17: =K17*F17 ->  | N17: =K17*G17 -> 

Sheet STEP 7--Fertilizer Costs
A1: The chart below collects the fertilizer you selected on the other worksheets for a total volume and cost of ammending the area specified in Step 1.
B3: Fertilizer | C3: Pounds of fertilizer to add per acre | D3: Relative availability of fertilizer | E3: Estimated cost of fertilizer per acre | F3: Pounds of fertilizer for your field | G3: Estimated cost of fertilizer for your field
A4: N--> | B4: ='STEP 4--Choose N'!D2 -> Soybean meal, OG | C4: =ROUNDUP(VLOOKUP('STEP 4--Choose N'!D2,'N lookup'!A2:Q47,11,FALSE),-2) ->  | D4: =VLOOKUP('STEP 4--Choose N'!D2,'N lookup'!A2:Q47,8,FALSE) -> slow/ med | E4: =ROUNDUP(VLOOKUP('STEP 4--Choose N'!D2,'N lookup'!A2:Q47,17,FALSE),-1) ->  | F4: =ROUNDUP(VLOOKUP('STEP 4--Choose N'!D2,'N lookup'!A2:Q47,11,FALSE),-2)*'STEP 1--Field Information'!F23 ->  | G4: =ROUNDUP(VLOOKUP('STEP 4--Choose N'!D2,'N lookup'!A2:Q47,17,FALSE),-1)*'STEP 1--Field Information'!F23 -> 
A5: P--> | B5: ='STEP 5--Choose P'!D2 -> NONE NEEDED | C5: =ROUNDUP(VLOOKUP('STEP 5--Choose P'!D2,'P lookup'!A2:P16,11,FALSE),-2) -> 0 | D5: =VLOOKUP('STEP 5--Choose P'!D2,'P lookup'!A2:P16,8,FALSE) -> 0 | E5: =ROUNDUP(VLOOKUP('STEP 5--Choose P'!D2,'P lookup'!A2:P16,16,FALSE),-1) -> 0 | F5: =ROUNDUP(VLOOKUP('STEP 5--Choose P'!D2,'P lookup'!A2:P16,11,FALSE),-2)*'STEP 1--Field Information'!F23 -> 0 | G5: =ROUNDUP(VLOOKUP('STEP 5--Choose P'!D2,'P lookup'!A2:P16,16,FALSE),-1)*'STEP 1--Field Information'!F23 -> 0
A6: K--> | B6: ='STEP 6--Choose K'!E2 -> Sulfate of potash | C6: =ROUNDUP(VLOOKUP('STEP 6--Choose K'!E2,'K lookup'!A2:P17,11,FALSE),-1) ->  | D6: =VLOOKUP('STEP 6--Choose K'!E2,'K lookup'!A2:P17,8,FALSE) -> rapid | E6: =ROUNDUP(VLOOKUP('STEP 6--Choose K'!E2,'K lookup'!A2:P17,15,FALSE),-1) ->  | F6: =ROUNDUP(VLOOKUP('STEP 6--Choose K'!E2,'K lookup'!A2:P17,11,FALSE),-1)*'STEP 1--Field Information'!F23 ->  | G6: =ROUNDUP(VLOOKUP('STEP 6--Choose K'!E2,'K lookup'!A2:P17,15,FALSE),-1)*'STEP 1--Field Information'!F23 -> 
B7: Cost per acre | E7: =SUM(E4:E6) -> 
A10: TOTAL FERTILIZER COST for your field | G10: =SUM(E4:E6)*'STEP 1--Field Information'!F23 -> 

Sheet Calcium (hidden)

Sheet Magnesium (hidden)

Sheet Sulfur (hidden)

Sheet Trace Element (hidden)

Sheet STEP 8--Amendment Plan
A1: Instructions: The information below will autofill from the calculator. Once you complete the calculator for each field, click "Save Line" in the left hand column, and the information will be saved in the line below. You may then start the calculator again for your next field.
A3: click here to save line for each field: | B3: Field Name | C3: Size (acre equivalents) | D3: Crop | E3: pH | F3: Lime needed (tons per acre) | G3: lb/ acre N | H3: N Amendment | I3: lb/ field N Amendment | J3: lb/ acre P205 | K3: P205 Amendment | L3: lb/ field P205 Amendment | M3: Recommended lb/ field unit K20 | N3: K20 Amendment | O3: lb/ field K20 Amendment | P3: Estimated cost of Amendments per field | Q3: Pounds Ca contributed by selected fertilizlers | R3: Pounds Mg contributed by selected fertilizlers | S3: Pounds S contributed by selected fertilizlers
B4: ='STEP 1--Field Information'!E6 -> 0 | C4: ='STEP 1--Field Information'!F23 -> 0 | D4: ='STEP 1--Field Information'!E8 -> 0 | E4: ='STEP 2--Soil Test Information'!B4 -> 0 | F4: ='STEP 2--Soil Test Information'!B21 -> 0 | G4: ='STEP 3--Nutrient Needs'!C11 ->  | H4: ='STEP 4--Choose N'!D2 -> Soybean meal, OG | I4: ='STEP 7--Fertilizer Costs'!F4 ->  | J4: ='STEP 3--Nutrient Needs'!D11 ->  | K4: ='STEP 5--Choose P'!D2 -> NONE NEEDED | L4: ='STEP 7--Fertilizer Costs'!F5 -> 0 | M4: ='STEP 3--Nutrient Needs'!E11 ->  | N4: ='STEP 6--Choose K'!E2 -> Sulfate of potash | O4: ='STEP 7--Fertilizer Costs'!F6 ->  | P4: =(ROUNDUP(VLOOKUP('STEP 4--Choose N'!D2,'N lookup'!A2:Q47,17,FALSE),-1)+ROUNDUP(VLOOKUP('STEP 5--Choose P'!D2,'P lookup'!A2:P16,16,FALSE),-1)+ROUNDUP(VLOOKUP('STEP 6--Choose K'!E2,'K lookup'!A2:P17,15,FALSE),-1))*'STEP 1--Field Information'!F23 ->  | Q4: =C4*(VLOOKUP('STEP 5--Choose P'!D2,'P lookup'!A2:P16,13,FALSE)+VLOOKUP('STEP 4--Choose N'!D2,'N lookup'!A2:Q47,14,FALSE)+VLOOKUP('STEP 6--Choose K'!E2,'K lookup'!A2:P17,12,FALSE)) ->  | R4: =C4*(VLOOKUP('STEP 5--Choose P'!D2,'P lookup'!A2:P16,14,FALSE)+VLOOKUP('STEP 4--Choose N'!D2,'N lookup'!A2:Q47,15,FALSE)+VLOOKUP('STEP 6--Choose K'!E2,'K lookup'!A2:P17,13,FALSE)) ->  | S4: =C4*(VLOOKUP('STEP 5--Choose P'!D2,'P lookup'!A2:P16,15,FALSE)+VLOOKUP('STEP 4--Choose N'!D2,'N lookup'!A2:Q47,16,FALSE)+VLOOKUP('STEP 6--Choose K'!E2,'K lookup'!A2:P17,14,FALSE)) -> 

Sheet Appendix--Fertilizer Costs
A1: MATERIAL | B1: % N | C1: % P2O5 | D1: % K20 | E1: % Ca | F1: % Mg | G1: % S | H1: Release Rate | I1: Price per 50 lb | J1: $/lb N | K1: $/lb P | L1: $/lb K | M1: pricing source
A2: Alfalfa meal | B2: 0.03 | C2: 0.005 | D2: 0.025 | H2: slow/ med | I2: 31.06 | J2: =I2*2/(B2*100) -> 20.70666667 | K2: =I2*2/(C2*100) -> 124.24 | L2: =I2*2/(D2*100) -> 24.848 | M2: Oliver
A3: Azomite | I3: =50/44*50 -> 56.81818182 | M3: Lawes
A4: Blood meal | B4: 0.13 | C4: 0 | D4: 0 | H4: med/ rapid | I4: 91.49 | J4: =I4*2/(B4*100) -> 14.07538462 | M4: Oliver
A5: Bone meal, OG | B5: 0.03 | C5: 0.15 | H5: med | I5: 71 | J5: =I5*2/(B5*100) -> 47.33333333 | K5: =I5*2/(C5*100) -> 9.466666667 | M5: Oliver
A6: Bone char | B6: 0 | C6: 0.16 | D6: 0 | H6: rapid | I6: 47.2 | K6: =I6*2/(C6*100) -> 5.9 | M6: Oliver
A7: Calcitic limestone | E7: 0.38 | H7: med
A8: Chilean nitrate | B8: 0.15 | D8: 0.02 | H8: rapid | I8: 76.54 | J8: =I8*2/(B8*100) -> 10.20533333 | M8: Oliver
A9: Dehydrated Poultry Manure (Kreher's 5-4-3) | B9: 0.05 | C9: 0.04 | D9: 0.03 | E9: 0.09 | H9: med | I9: 15 | J9: =I9*2/(B9*100) -> 6 | K9: =I9*2/(C9*100) -> 7.5 | L9: =I9*2/(D9*100) -> 10 | M9: Lawes
A10: Dehydrated Poultry Manure (Kreher's 4-3-10) | B10: 0.04 | C10: 0.03 | D10: 0.1 | H10: med | I10: 22.5 | J10: =I10*2/(B10*100) -> 11.25 | K10: =I10*2/(C10*100) -> 15 | L10: =I10*2/(D10*100) -> 4.5 | M10: Lawes
A11: Dehydrated Poultry Manure (Kreher's 7-2-6) | B11: 0.07 | C11: 0.02 | D11: 0.06 | H11: med | I11: 28.75 | J11: =I11*2/(B11*100) -> 8.214285714 | M11: Lawes
A12: Dehydrated Poultry Manure (Kreher's 8-2-2) | B12: 0.08 | C12: 0.02 | D12: 0.02 | H12: med | I12: 28.75 | J12: =I12*2/(B12*100) -> 7.1875 | K12: =I12*2/(C12*100) -> 28.75 | L12: =I12*2/(D12*100) -> 28.75 | M12: Lawes
A13: Diammonium phosphate | C13: 0.46 | H13: rapid | I13: =473/40 -> 11.825 | K13: =I13*2/(C13*100) -> 0.5141304348 | M13: Lawes
A14: Dolomitic limestone | E14: 0.25 | F14: 0.1 | H14: med
A15: Epsom salts (Mg sulfate) | F15: 0.098 | G15: 0.13 | H15: rapid | I15: 21.52 | M15: Oliver
A16: Feather meal | B16: 0.13 | H16: med | I16: 56.77 | J16: =I16*2/(B16*100) -> 8.733846154 | M16: Oliver
A17: Fish emulsion | B17: 0.02 | C17: 0.05 | D17: 0.0002 | H17: rapid | I17: 109 | M17: Fedco
A18: Fish meal | B18: 0.067 | C18: 0.11 | D18: 0.004 | H18: med | I18: 112 | J18: =I18*2/(B18*100) -> 33.43283582 | K18: =I18*2/(C18*100) -> 20.36363636 | M18: Fedco
A19: Grioux's Composted Poultry Manure | B19: 0.02 | C19: 0.03 | D19: 0.015 | E19: 0.07 | F19: 0.01 | G19: 0.05 | H19: med | I19: =40/2000*50 -> 1 | J19: =I19*2/(B19*100) -> 1 | K19: =I19*2/(C19*100) -> 0.6666666667 | L19: =I19*2/(D19*100) -> 1.333333333 | M19: Giroux
A20: Giroux's pellets | B20: 0.04 | C20: 0.03 | D20: 0.02 | H20: med | I20: 8.3 | J20: =I20*2/(B20*100) -> 4.15 | K20: =I20*2/(C20*100) -> 5.533333333 | L20: =I20*2/(D20*100) -> 8.3
A21: Granite dust | D21: 0.06 | F21: 0.11 | G21: 0.22 | H21: very slow | I21: 89 | L21: =I21*2/(D21*100) -> 29.66666667
A22: Greensand | C22: 0.01 | D22: 0.07 | H22: very slow | I22: 31.5 | L22: =I22*2/(D22*100) -> 9
A23: Gypsum | E23: 0.23 | I23: 24 | M23: Fedco
A24: K-mag | D24: 0.22 | F24: 0.11 | G24: 0.22 | H24: rapid | I24: 27.65 | L24: =I24*2/(D24*100) -> 2.513636364 | M24: Oliver
A25: Kelp meal | I25: 98 | M25: Fedco
A26: Ag-Lime | I26: 200 | M26: Lawes
A27: Makro 60 | B27: 0 | C27: 0 | D27: 0.6 | I27: 36.25 | M27: Lawes
A28: Naturesafe | B28: 0.13 | C28: 0 | D28: 0 | H28: med | I28: 42.5 | J28: =I28*2/(B28*100) -> 6.538461538 | M28: Lawes
A29: Naturesafe | B29: 0.07 | C29: 0.12 | D29: 0 | I29: =28/40*50 -> 35 | J29: =I29*2/(B29*100) -> 10 | M29: Lawes
A30: Naturesafe | B30: 0.1 | C30: 0.02 | D30: 0.08 | I30: 36.25 | J30: =I30*2/(B30*100) -> 7.25 | M30: Lawes
A31: Organo-Phos w. humic acid | B31: 0 | C31: 0.12 | D31: 0 | E31: 0.25 | M31: Lawes
A32: Peanut meal | B32: 0.08 | C32: 0.01 | D32: 0.02 | H32: slow/ med | I32: 28 | J32: =I32*2/(B32*100) -> 7 | K32: =I32*2/(C32*100) -> 56 | L32: =I32*2/(D32*100) -> 28 | M32: Oliver
A33: Potassium chloride | D33: 0.6 | H33: rapid | I33: =740/2000*50 -> 18.5 | L33: =I33*2/(D33*100) -> 0.6166666667 | M33: Lawes
A34: Polysulfate | B34: 0 | C34: 0 | D34: 0.14 | E34: 0.12 | F34: 0.036 | G34: 0.19 | I34: 20 | M34: Lawes
A35: Rock phosphate | C35: 0.05 | H35: very slow | I35: 25 | K35: =I35*2/(C35*100) -> 10 | M35: Fedco
A36: Solubor | H36: 20.5 % B | I36: 90 | M36: Lawes
A37: Soybean meal | B37: 0.07 | C37: 0.01 | D37: 0.02 | F37: 0.03 | H37: slow/ med | I37: 17 | J37: =I37*2/(B37*100) -> 4.857142857 | K37: =I37*2/(C37*100) -> 34 | L37: =I37*2/(D37*100) -> 17 | M37: Depot
A38: Soybean meal, OG | B38: 0.07 | C38: 0.01 | D38: 0.02 | H38: slow/ med | I38: 43.6 | J38: =I38*2/(B38*100) -> 12.45714286 | K38: =I38*2/(C38*100) -> 87.2 | L38: =I38*2/(D38*100) -> 43.6 | M38: Oliver
A39: Sulfate of potash | B39: 0 | C39: 0 | D39: 0.5 | G39: 0.17 | H39: rapid | I39: 34.14 | L39: =I39*2/(D39*100) -> 1.3656 | M39: Oliver
A40: SOP soluble | B40: 0 | C40: 0 | D40: 0.52 | I40: 54.3 | M40: Oliver
A41: Triple super phosphate | B41: 0.18 | C41: 0.46 | H41: rapid | I41: =980/2000*50 -> 24.5 | K41: =I41*2/(C41*100) -> 1.065217391 | M41: Lawes
A42: Urea | B42: 0.46 | H42: rapid | I42: =750/2000*50 -> 18.75 | J42: =I42*2/(B42*100) -> 0.8152173913 | M42: Lawes
A43: Sufur, elemental | G43: 0.9 | H43: slow/ med | I43: 38 | M43: Fedco
A44: Blended fertilizers
A45: 10-10-10 | B45: 0.1 | C45: 0.1 | D45: 0.1 | H45: med | I45: =500/2000*50 -> 12.5 | J45: =I45*2/(B45*100) -> 2.5 | K45: =I45*2/(C45*100) -> 2.5 | L45: =I45*2/(D45*100) -> 2.5
A46: Cheep Cheep | B46: 0.04 | C46: 0.03 | D46: 0.03 | H46: med | I46: 27.65 | J46: 13.825 | K46: =I46*2/(C46*100) -> 18.43333333 | L46: =I46*2/(D46*100) -> 18.43333333 | M46: Oliver
A47: Custom 6-0-6 | B47: 0.06 | D47: 0.06 | H47: med | I47: 38.69 | J47: 12.89666667 | L47: =I47*2/(D47*100) -> 12.89666667 | M47: Oliver
A48: Pro-Start | B48: 0.02 | C48: 0.03 | D48: 0.03 | H48: med/ rapid | I48: 20 | J48: 20 | K48: =I48*2/(C48*100) -> 13.33333333 | L48: =I48*2/(D48*100) -> 13.33333333 | M48: Oliver
A49: Pro-Booster | B49: 0.1 | H49: med/ rapid | I49: 45.43 | J49: 9.086 | M49: Oliver
A50: Pro-Gro | B50: 0.05 | C50: 0.03 | D50: 0.04 | H50: med | I50: 31.6 | J50: 12.64 | K50: =I50*2/(C50*100) -> 21.06666667 | L50: =I50*2/(D50*100) -> 15.8 | M50: Oliver

Sheet Cost per pound of Nutrients (hidden)
A1: MATERIAL | B1: % N | C1: %P2 O5 | D1: %K20 | E1: %Ca | F1: %Mg | G1: %S | H1: Relative Availability | I1: Price per 50 lb (2015) | J1: Price per pound of N | K1: Price per pound of P | L1: Price per pound of K
A2: Bagged Amendments
A3: Alfalfa meal | B3: 0.03 | C3: 0.005 | D3: 0.025 | H3: Slow/ med | I3: 31 | J3: =I3*2/3 -> 20.66666667 | K3: =62/0.5 -> 124 | L3: =62/2.5 -> 24.8
A4: Ammonium Nitrate | B4: 0.34 | H4: rapid | I4: 12 | J4: =24/34 -> 0.7058823529
A5: Ammonium Sulfate | B5: 0.21 | G5: 0.23 | H5: rapid
A6: Blood Meal | B6: 0.12 | C6: 0.01 | D6: 0.005 | H6: med/ rapid | I6: 82 | J6: =164/12 -> 13.66666667 | K6: =164/1 -> 164 | L6: =164/0.5 -> 328
A7: Bone char | C7: 0.16 | H7: med | I7: 16 | K7: =32/16 -> 2
A8: Bone Meal | B8: 0.03 | C8: 0.15 | H8: med | I8: 70 | J8: =140/3 -> 46.66666667 | K8: =140/15 -> 9.333333333
A9: Calcitic Limestone | E9: 0.38 | H9: med
A10: Calcium Nitrate | B10: 0.15 | E10: 0.19 | H10: rapid
A11: Chilean Nitrate** | B11: 0.16 | H11: rapid | I11: 50 | J11: =100/16 -> 6.25
A12: Diammonium phosphate (DAP) | C12: 0.46 | H12: rapid | I12: =473/40 -> 11.825 | K12: =11.83*2/46 -> 0.5143478261
A13: Dolomitic Limestone | E13: 0.25 | F13: 0.1 | H13: med
A14: Elemental Sulfur | H14: ?
A15: Epsom Salts | F15: 0.098 | G15: 0.13 | H15: rapid
A16: Feather meal | B16: 0.12 | H16: med | I16: 50 | J16: =100/12 -> 8.333333333
A17: Fish Emulsion | B17: 0.05 | C17: 0.02 | H17: rapid
A18: Fish Meal | B18: 0.09 | C18: 0.07 | I18: 90
A19: Granite dust | D19: 0.06 | F19: 0.11 | G19: 0.22 | H19: very slow | I19: 89
A20: Greensand | C20: 0.01 | D20: 0.07 | H20: very slow | I20: 30
A21: Gypsum | E21: 0.23 | I21: 20
A22: Peanut meal | B22: 0.08 | C22: 0.01 | D22: 0.02 | H22: Slow/ med | I22: 31.5 | J22: =63/8 -> 7.875
A23: Pelletized chicken manure | B23: 0.03 | C23: 0.015 | D23: 0.015 | E23: 0.07 | F23: 0.01 | G23: 0.05 | H23: med/ rapid | I23: 12 | J23: =24/3 -> 8 | K23: =24/2 -> 12 | L23: =24/2 -> 12
A24: Potassium Choloride | D24: 0.6 | H24: rapid | I24: =0.3*50 -> 15 | J24: =
A25: Potassium Nitrate | H25: rapid
A26: Potassium Sulfate | D26: 0.5 | G26: 0.17 | H26: rapid | I26: 54 | L26: =108/50 -> 2.16
A27: Pro start | B27: 0.02 | C27: 0.03 | D27: 0.03 | H27: med/ rapid | I27: 15.5 | J27: =31/2 -> 15.5
A28: Probooster | B28: 0.1 | H28: med/ rapid | I28: 38 | J28: =76/10 -> 7.6
A29: Progro | B29: 0.05 | C29: 0.03 | D29: 0.04 | H29: med | I29: 22 | J29: =44/5 -> 8.8 | K29: =44/3 -> 14.66666667 | L29: =44/4 -> 11
A30: Rock phosphate | C30: 30%*** | H30: very slow | I30: 24
A31: Sol-po-mag | D31: 0.22 | F31: 0.11 | G31: 0.22 | H31: rapid | I31: 16 | L31: =32/22 -> 1.454545455
A32: Soymeal | B32: 0.07 | C32: 0.02 | D32: 0.01 | F32: 0.03 | H32: slow/ med | I32: 17 | J32: =34/7 -> 4.857142857
A33: Super phosphate | C33: 0.45 | H33: rapid | I33: 3.5
A34: Triple superphosphate | C34: 0.46 | H34: rapid | I34: 9.5
A35: Urea | B35: 0.46 | H35: rapid | I35: 20 | J35: =40/46 -> 0.8695652174
A37: Blended Fertilizers
A38: Cheep cheep | B38: 0.04 | C38: 0.03 | D38: 0.03 | H38: med | I38: 22 | J38: =44/4 -> 11 | K38: =44/3 -> 14.66666667 | L38: =44/3 -> 14.66666667
A39: Custom 5-5-5 | B39: 0.05 | C39: 0.05 | D39: 0.05 | H39: med | I39: 25 | J39: =50/5 -> 10 | K39: =50/5 -> 10 | L39: =50/5 -> 10
A40: custom 6-0-6 | B40: 0.06 | D40: 0.06 | H40: med | I40: 28 | J40: =56/6 -> 9.333333333 | L40: =56/6 -> 9.333333333
A44: Bulk Materials
A45: Compost (mature) | B45: 0.01 | C45: 0.01 | D45: 0.01 | H45: med
A46: Manure (fresh) | H46: med
A47: Dairy | B47: 0.005 | C47: 0.002 | D47: 0.005 | H47: med
A48: Horse | B48: 0.005 | C48: 0.002 | D48: 0.005 | H48: med
A49: Sheep | B49: 0.01 | C49: 0.005 | D49: 0.01
A54: Blue shading indicates an organic material, but check with your certifying agency before using.
A55: **No more than 20% of a crop's annual N needs can be supplied by Chilean nitrate according to the NOP
A56: ***about 2% available
